{"text_format":"1","workbook":"xlsx","n_sheets":3,"sheets":["Ata","Simulador de pontos para progr.","Regras de cálculo"],"not_rendered":{"charts":0,"images":1,"macros":1,"external_links":0,"defined_names":2,"comments":0,"pivot_tables":0},"unopened":[],"bounds":{"document_bytes":16777216,"sheet_cells":100000,"rows_first":2000,"rows_last":500,"rows_between":2000,"halvings":0,"cell_chars":16384,"cell_head_chars":4096},"cells_cut":0,"cells_raw":0,"read":"whole","date_system":"1900"}

{"sheet":"Ata","index":0,"n_rows":113,"n_cols":6,"rows_kept":113,"cut":false,"hidden":false,"merged":[[106,0,106,2],[108,0,108,2],[110,0,110,2],[112,0,112,2],[1,2,1,3],[1,4,2,4],[3,1,3,2],[4,1,4,2],[5,1,5,2],[6,1,6,2],[7,1,7,2],[2,2,2,3],[26,1,26,2],[27,1,27,2],[28,1,28,2],[29,1,29,2],[30,1,30,2],[31,1,31,2],[20,1,20,2],[21,1,21,2],[22,1,22,2],[23,1,23,2],[24,1,24,2],[25,1,25,2],[0,0,0,4],[1,0,1,1],[2,0,2,1],[14,1,14,2],[15,1,15,2],[16,1,16,2],[17,1,17,2],[18,1,18,2],[19,1,19,2],[8,1,8,2],[9,1,9,2],[10,1,10,2],[11,1,11,2],[12,1,12,2],[13,1,13,2],[38,1,38,2],[39,1,39,2],[40,1,40,2],[41,1,41,2],[42,1,42,2],[43,1,43,2],[32,1,32,2],[33,1,33,2],[34,1,34,2],[35,1,35,2],[36,1,36,2],[37,1,37,2],[50,1,50,2],[51,1,51,2],[52,1,52,2],[53,1,53,2],[54,1,54,2],[55,1,55,2],[44,1,44,2],[45,1,45,2],[46,1,46,2],[47,1,47,2],[48,1,48,2],[49,1,49,2],[62,1,62,2],[63,1,63,2],[64,1,64,2],[65,1,65,2],[66,1,66,2],[67,1,67,2],[56,1,56,2],[57,1,57,2],[58,1,58,2],[59,1,59,2],[60,1,60,2],[61,1,61,2],[74,1,74,2],[75,1,75,2],[76,1,76,2],[77,1,77,2],[78,1,78,2],[79,1,79,2],[68,1,68,2],[69,1,69,2],[70,1,70,2],[71,1,71,2],[72,1,72,2],[73,1,73,2],[86,1,86,2],[87,1,87,2],[88,1,88,2],[89,1,89,2],[90,1,90,2],[91,1,91,2],[80,1,80,2],[81,1,81,2],[82,1,82,2],[83,1,83,2],[84,1,84,2],[85,1,85,2],[98,1,98,2],[99,1,99,2],[100,1,100,2],[101,1,101,2],[102,1,102,2],[92,1,92,2],[93,1,93,2],[94,1,94,2],[95,1,95,2],[96,1,96,2],[97,1,97,2]]}
["Ata de revisão de documentos - Processo Interno de Progressão Docente\nComissão de Progressões e Promoções - Ensino Superior"]
["Código / Nome do candidato:",null,{"$f":"'Simulador de pontos para progr.'!J4&\" / \"&'Simulador de pontos para progr.'!K4","v":" / "},null,{"$f":"IF('Simulador de pontos para progr.'!E162>=VLOOKUP(C3,'Regras de cálculo'!C:D,2,0),\"ATINGIU PONTUAÇÃO\",\"NÃO ATINGIU PONTUAÇÃO\")&\" (\"&'Simulador de pontos para progr.'!E162&\"/\"&VLOOKUP(C3,'Regras de cálculo'!C:D,2,0)&\")\"","v":{"$error":"#N/A"}}]
["Cargo pretendido:",null,{"$f":"'Simulador de pontos para progr.'!L4","v":0}]
["Item","Descrição",null,"Deferimento","Justificativa","FILTRO"]
[{"$f":"'Simulador de pontos para progr.'!A6","v":"D1.1.1"},{"$f":"VLOOKUP(A:A,'Simulador de pontos para progr.'!A:B,2,0)","v":"Para 40h de participação como ouvinte em cursos ou eventos academicos e cientificos(regional)"},null,{"$f":"IF(VLOOKUP(A:A,'Simulador de pontos para progr.'!A:J,10,0)=0,\"\",VLOOKUP(A:A,'Simulador de pontos para progr.'!A:J,10,0))","v":""},{"$f":"IF(D:D=\"Parcialmente Deferido\",\"Pontuação aproveitada (sem considerar regra de redimensionamento): \"&VLOOKUP(A:A,'Simulador de pontos para progr.'!A:H,6,0)&\" pontos. \"&IF(VLOOKUP(A:A,'Simulador de pontos para progr.'!A:K,11,0)=0,\"\",VLOOKUP(A:A,'Simulador de pontos para progr.'!A:K,11,0)),IF(VLOOKUP(A:A,'Simulador de pontos para progr.'!A:K,11,0)=0,\"\",VLOOKUP(A:A,'Simulador de pontos para progr.'!A:K,11,0)))","v":""},{"$f":"IF(OR(D:D=\"Indeferido\",D:D=\"Parcialmente Deferido\",A:A=\"Não houve itens indeferidos ou parcialmente indeferidos.\"),\"Mostra\",\"Esconde\")","v":"Esconde"}]
[{"$f":"'Simulador de pontos para progr.'!A7","v":"D1.1.2"},{"$f":"VLOOKUP(A:A,'Simulador de pontos para progr.'!A:B,2,0)","v":"Para 40h de participação como ouvinte em cursos ou eventos academicos e cientificos(nacional)"},null,{"$f":"IF(VLOOKUP(A:A,'Simulador de pontos para progr.'!A:J,10,0)=0,\"\",VLOOKUP(A:A,'Simulador de pontos para progr.'!A:J,10,0))","v":""},{"$f":"IF(D:D=\"Parcialmente Deferido\",\"Pontuação aproveitada (sem considerar regra de redimensionamento): \"&VLOOKUP(A:A,'Simulador de pontos para progr.'!A:H,6,0)&\" pontos. \"&IF(VLOOKUP(A:A,'Simulador de pontos para progr.'!A:K,11,0)=0,\"\",VLOOKUP(A:A,'Simulador de pontos para progr.'!A:K,11,0)),IF(VLOOKUP(A:A,'Simulador de pontos para progr.'!A:K,11,0)=0,\"\",VLOOKUP(A:A,'Simulador de pontos para progr.'!A:K,11,0)))","v":""},"Esconde"]
[{"$f":"'Simulador de pontos para progr.'!A8","v":"D1.1.3"},{"$f":"VLOOKUP(A:A,'Simulador de pontos para progr.'!A:B,2,0)","v":"Para 40h de participação como ouvinte em cursos ou eventos academicos ecientificos(internacional)"},null,{"$f":"IF(VLOOKUP(A:A,'Simulador de pontos para progr.'!A:J,10,0)=0,\"\",VLOOKUP(A:A,'Simulador de pontos para progr.'!A:J,10,0))","v":""},{"$f":"IF(D:D=\"Parcialmente Deferido\",\"Pontuação aproveitada (sem considerar regra de redimensionamento): \"&VLOOKUP(A:A,'Simulador de pontos para progr.'!A:H,6,0)&\" pontos. \"&IF(VLOOKUP(A:A,'Simulador de pontos para progr.'!A:K,11,0)=0,\"\",VLOOKUP(A:A,'Simulador de pontos para progr.'!A:K,11,0)),IF(VLOOKUP(A:A,'Simulador de pontos para progr.'!A:K,11,0)=0,\"\",VLOOKUP(A:A,'Simulador de pontos para progr.'!A:K,11,0)))","v":""},"Esconde"]
[{"$f":"'Simulador de pontos para progr.'!A11","v":"D1.2.1"},{"$f":"VLOOKUP(A:A,'Simulador de pontos para progr.'!A:B,2,0)","v":"Apresentação de trabalhos sem publicação (regional)"},null,{"$f":"IF(VLOOKUP(A:A,'Simulador de pontos para progr.'!A:J,10,0)=0,\"\",VLOOKUP(A:A,'Simulador de pontos para progr.'!A:J,10,0))","v":""},{"$f":"IF(D:D=\"Parcialmente Deferido\",\"Pontuação aproveitada (sem considerar regra de redimensionamento): \"&VLOOKUP(A:A,'Simulador de pontos para progr.'!A:H,6,0)&\" pontos. \"&IF(VLOOKUP(A:A,'Simulador de pontos para progr.'!A:K,11,0)=0,\"\",VLOOKUP(A:A,'Simulador de pontos para progr.'!A:K,11,0)),IF(VLOOKUP(A:A,'Simulador de pontos para progr.'!A:K,11,0)=0,\"\",VLOOKUP(A:A,'Simulador de pontos para progr.'!A:K,11,0)))","v":""},"Esconde"]
[{"$f":"'Simulador de pontos para progr.'!A12","v":"D1.2.2"},{"$f":"VLOOKUP(A:A,'Simulador de pontos para progr.'!A:B,2,0)","v":"Apresentação de trabalhos sem publicação (nacional)"},null,{"$f":"IF(VLOOKUP(A:A,'Simulador de pontos para progr.'!A:J,10,0)=0,\"\",VLOOKUP(A:A,'Simulador de pontos para progr.'!A:J,10,0))","v":""},{"$f":"IF(D:D=\"Parcialmente Deferido\",\"Pontuação aproveitada (sem considerar regra de redimensionamento): \"&VLOOKUP(A:A,'Simulador de pontos para progr.'!A:H,6,0)&\" pontos. \"&IF(VLOOKUP(A:A,'Simulador de pontos para progr.'!A:K,11,0)=0,\"\",VLOOKUP(A:A,'Simulador de pontos para progr.'!A:K,11,0)),IF(VLOOKUP(A:A,'Simulador de pontos para progr.'!A:K,11,0)=0,\"\",VLOOKUP(A:A,'Simulador de pontos para progr.'!A:K,11,0)))","v":""},"Esconde"]
[{"$f":"'Simulador de pontos para progr.'!A13","v":"D1.2.3"},{"$f":"VLOOKUP(A:A,'Simulador de pontos para progr.'!A:B,2,0)","v":"Apresentação de trabalhos sem publicação (internacional)"},null,{"$f":"IF(VLOOKUP(A:A,'Simulador de pontos para progr.'!A:J,10,0)=0,\"\",VLOOKUP(A:A,'Simulador de pontos para progr.'!A:J,10,0))","v":""},{"$f":"IF(D:D=\"Parcialmente Deferido\",\"Pontuação aproveitada (sem considerar regra de redimensionamento): \"&VLOOKUP(A:A,'Simulador de pontos para progr.'!A:H,6,0)&\" pontos. \"&IF(VLOOKUP(A:A,'Simulador de pontos para progr.'!A:K,11,0)=0,\"\",VLOOKUP(A:A,'Simulador de pontos para progr.'!A:K,11,0)),IF(VLOOKUP(A:A,'Simulador de pontos para progr.'!A:K,11,0)=0,\"\",VLOOKUP(A:A,'Simulador de pontos para progr.'!A:K,11,0)))","v":""},"Esconde"]
[{"$f":"'Simulador de pontos para progr.'!A16","v":"D1.3.1"},{"$f":"VLOOKUP(A:A,'Simulador de pontos para progr.'!A:B,2,0)","v":"Organização e coordenação de eventos (regional)"},null,{"$f":"IF(VLOOKUP(A:A,'Simulador de pontos para progr.'!A:J,10,0)=0,\"\",VLOOKUP(A:A,'Simulador de pontos para progr.'!A:J,10,0))","v":""},{"$f":"IF(D:D=\"Parcialmente Deferido\",\"Pontuação aproveitada (sem considerar regra de redimensionamento): \"&VLOOKUP(A:A,'Simulador de pontos para progr.'!A:H,6,0)&\" pontos. \"&IF(VLOOKUP(A:A,'Simulador de pontos para progr.'!A:K,11,0)=0,\"\",VLOOKUP(A:A,'Simulador de pontos para progr.'!A:K,11,0)),IF(VLOOKUP(A:A,'Simulador de pontos para progr.'!A:K,11,0)=0,\"\",VLOOKUP(A:A,'Simulador de pontos para progr.'!A:K,11,0)))","v":""},"Esconde"]
[{"$f":"'Simulador de pontos para progr.'!A17","v":"D1.3.2"},{"$f":"VLOOKUP(A:A,'Simulador de pontos para progr.'!A:B,2,0)","v":"Organização e coordenação de eventos (nacional)"},null,{"$f":"IF(VLOOKUP(A:A,'Simulador de pontos para progr.'!A:J,10,0)=0,\"\",VLOOKUP(A:A,'Simulador de pontos para progr.'!A:J,10,0))","v":""},{"$f":"IF(D:D=\"Parcialmente Deferido\",\"Pontuação aproveitada (sem considerar regra de redimensionamento): \"&VLOOKUP(A:A,'Simulador de pontos para progr.'!A:H,6,0)&\" pontos. \"&IF(VLOOKUP(A:A,'Simulador de pontos para progr.'!A:K,11,0)=0,\"\",VLOOKUP(A:A,'Simulador de pontos para progr.'!A:K,11,0)),IF(VLOOKUP(A:A,'Simulador de pontos para progr.'!A:K,11,0)=0,\"\",VLOOKUP(A:A,'Simulador de pontos para progr.'!A:K,11,0)))","v":""},"Esconde"]
[{"$f":"'Simulador de pontos para progr.'!A18","v":"D1.3.3"},{"$f":"VLOOKUP(A:A,'Simulador de pontos para progr.'!A:B,2,0)","v":"Organização e coordenação de eventos (internacional)"},null,{"$f":"IF(VLOOKUP(A:A,'Simulador de pontos para progr.'!A:J,10,0)=0,\"\",VLOOKUP(A:A,'Simulador de pontos para progr.'!A:J,10,0))","v":""},{"$f":"IF(D:D=\"Parcialmente Deferido\",\"Pontuação aproveitada (sem considerar regra de redimensionamento): \"&VLOOKUP(A:A,'Simulador de pontos para progr.'!A:H,6,0)&\" pontos. \"&IF(VLOOKUP(A:A,'Simulador de pontos para progr.'!A:K,11,0)=0,\"\",VLOOKUP(A:A,'Simulador de pontos para progr.'!A:K,11,0)),IF(VLOOKUP(A:A,'Simulador de pontos para progr.'!A:K,11,0)=0,\"\",VLOOKUP(A:A,'Simulador de pontos para progr.'!A:K,11,0)))","v":""},"Esconde"]
[{"$f":"'Simulador de pontos para progr.'!A21","v":"D1.4.1"},{"$f":"VLOOKUP(A:A,'Simulador de pontos para progr.'!A:B,2,0)","v":"Participação como palestrante em eventos ou ministrante de curso (regional)"},null,{"$f":"IF(VLOOKUP(A:A,'Simulador de pontos para progr.'!A:J,10,0)=0,\"\",VLOOKUP(A:A,'Simulador de pontos para progr.'!A:J,10,0))","v":""},{"$f":"IF(D:D=\"Parcialmente Deferido\",\"Pontuação aproveitada (sem considerar regra de redimensionamento): \"&VLOOKUP(A:A,'Simulador de pontos para progr.'!A:H,6,0)&\" pontos. \"&IF(VLOOKUP(A:A,'Simulador de pontos para progr.'!A:K,11,0)=0,\"\",VLOOKUP(A:A,'Simulador de pontos para progr.'!A:K,11,0)),IF(VLOOKUP(A:A,'Simulador de pontos para progr.'!A:K,11,0)=0,\"\",VLOOKUP(A:A,'Simulador de pontos para progr.'!A:K,11,0)))","v":""},"Esconde"]
[{"$f":"'Simulador de pontos para progr.'!A22","v":"D1.4.2"},{"$f":"VLOOKUP(A:A,'Simulador de pontos para progr.'!A:B,2,0)","v":"Participação como palestrante em eventos ou ministrante de curso (nacional)"},null,{"$f":"IF(VLOOKUP(A:A,'Simulador de pontos para progr.'!A:J,10,0)=0,\"\",VLOOKUP(A:A,'Simulador de pontos para progr.'!A:J,10,0))","v":""},{"$f":"IF(D:D=\"Parcialmente Deferido\",\"Pontuação aproveitada (sem considerar regra de redimensionamento): \"&VLOOKUP(A:A,'Simulador de pontos para progr.'!A:H,6,0)&\" pontos. \"&IF(VLOOKUP(A:A,'Simulador de pontos para progr.'!A:K,11,0)=0,\"\",VLOOKUP(A:A,'Simulador de pontos para progr.'!A:K,11,0)),IF(VLOOKUP(A:A,'Simulador de pontos para progr.'!A:K,11,0)=0,\"\",VLOOKUP(A:A,'Simulador de pontos para progr.'!A:K,11,0)))","v":""},"Esconde"]
[{"$f":"'Simulador de pontos para progr.'!A23","v":"D1.4.3"},{"$f":"VLOOKUP(A:A,'Simulador de pontos para progr.'!A:B,2,0)","v":"Participação como palestrante em eventos ou ministrante de curso (internacional)"},null,{"$f":"IF(VLOOKUP(A:A,'Simulador de pontos para progr.'!A:J,10,0)=0,\"\",VLOOKUP(A:A,'Simulador de pontos para progr.'!A:J,10,0))","v":""},{"$f":"IF(D:D=\"Parcialmente Deferido\",\"Pontuação aproveitada (sem considerar regra de redimensionamento): \"&VLOOKUP(A:A,'Simulador de pontos para progr.'!A:H,6,0)&\" pontos. \"&IF(VLOOKUP(A:A,'Simulador de pontos para progr.'!A:K,11,0)=0,\"\",VLOOKUP(A:A,'Simulador de pontos para progr.'!A:K,11,0)),IF(VLOOKUP(A:A,'Simulador de pontos para progr.'!A:K,11,0)=0,\"\",VLOOKUP(A:A,'Simulador de pontos para progr.'!A:K,11,0)))","v":""},"Esconde"]
[{"$f":"'Simulador de pontos para progr.'!A26","v":"D1.5.1"},{"$f":"VLOOKUP(A:A,'Simulador de pontos para progr.'!A:B,2,0)","v":"Mediação em mesas de eventos (regional)"},null,{"$f":"IF(VLOOKUP(A:A,'Simulador de pontos para progr.'!A:J,10,0)=0,\"\",VLOOKUP(A:A,'Simulador de pontos para progr.'!A:J,10,0))","v":""},{"$f":"IF(D:D=\"Parcialmente Deferido\",\"Pontuação aproveitada (sem considerar regra de redimensionamento): \"&VLOOKUP(A:A,'Simulador de pontos para progr.'!A:H,6,0)&\" pontos. \"&IF(VLOOKUP(A:A,'Simulador de pontos para progr.'!A:K,11,0)=0,\"\",VLOOKUP(A:A,'Simulador de pontos para progr.'!A:K,11,0)),IF(VLOOKUP(A:A,'Simulador de pontos para progr.'!A:K,11,0)=0,\"\",VLOOKUP(A:A,'Simulador de pontos para progr.'!A:K,11,0)))","v":""},"Esconde"]
[{"$f":"'Simulador de pontos para progr.'!A27","v":"D1.5.2"},{"$f":"VLOOKUP(A:A,'Simulador de pontos para progr.'!A:B,2,0)","v":"Mediação em mesas de eventos (nacional)"},null,{"$f":"IF(VLOOKUP(A:A,'Simulador de pontos para progr.'!A:J,10,0)=0,\"\",VLOOKUP(A:A,'Simulador de pontos para progr.'!A:J,10,0))","v":""},{"$f":"IF(D:D=\"Parcialmente Deferido\",\"Pontuação aproveitada (sem considerar regra de redimensionamento): \"&VLOOKUP(A:A,'Simulador de pontos para progr.'!A:H,6,0)&\" pontos. \"&IF(VLOOKUP(A:A,'Simulador de pontos para progr.'!A:K,11,0)=0,\"\",VLOOKUP(A:A,'Simulador de pontos para progr.'!A:K,11,0)),IF(VLOOKUP(A:A,'Simulador de pontos para progr.'!A:K,11,0)=0,\"\",VLOOKUP(A:A,'Simulador de pontos para progr.'!A:K,11,0)))","v":""},"Esconde"]
[{"$f":"'Simulador de pontos para progr.'!A28","v":"D1.5.3"},{"$f":"VLOOKUP(A:A,'Simulador de pontos para progr.'!A:B,2,0)","v":"Mediação em mesas de eventos (internacional)"},null,{"$f":"IF(VLOOKUP(A:A,'Simulador de pontos para progr.'!A:J,10,0)=0,\"\",VLOOKUP(A:A,'Simulador de pontos para progr.'!A:J,10,0))","v":""},{"$f":"IF(D:D=\"Parcialmente Deferido\",\"Pontuação aproveitada (sem considerar regra de redimensionamento): \"&VLOOKUP(A:A,'Simulador de pontos para progr.'!A:H,6,0)&\" pontos. \"&IF(VLOOKUP(A:A,'Simulador de pontos para progr.'!A:K,11,0)=0,\"\",VLOOKUP(A:A,'Simulador de pontos para progr.'!A:K,11,0)),IF(VLOOKUP(A:A,'Simulador de pontos para progr.'!A:K,11,0)=0,\"\",VLOOKUP(A:A,'Simulador de pontos para progr.'!A:K,11,0)))","v":""},"Esconde"]
[{"$f":"'Simulador de pontos para progr.'!A34","v":"D2.1.1"},{"$f":"VLOOKUP(A:A,'Simulador de pontos para progr.'!A:B,2,0)","v":"Marca (logomarca) registrada"},null,{"$f":"IF(VLOOKUP(A:A,'Simulador de pontos para progr.'!A:J,10,0)=0,\"\",VLOOKUP(A:A,'Simulador de pontos para progr.'!A:J,10,0))","v":""},{"$f":"IF(D:D=\"Parcialmente Deferido\",\"Pontuação aproveitada (sem considerar regra de redimensionamento): \"&VLOOKUP(A:A,'Simulador de pontos para progr.'!A:H,6,0)&\" pontos. \"&IF(VLOOKUP(A:A,'Simulador de pontos para progr.'!A:K,11,0)=0,\"\",VLOOKUP(A:A,'Simulador de pontos para progr.'!A:K,11,0)),IF(VLOOKUP(A:A,'Simulador de pontos para progr.'!A:K,11,0)=0,\"\",VLOOKUP(A:A,'Simulador de pontos para progr.'!A:K,11,0)))","v":""},"Esconde"]
[{"$f":"'Simulador de pontos para progr.'!A35","v":"D2.1.2"},{"$f":"VLOOKUP(A:A,'Simulador de pontos para progr.'!A:B,2,0)","v":"Software criado, desenvolvido e registrado"},null,{"$f":"IF(VLOOKUP(A:A,'Simulador de pontos para progr.'!A:J,10,0)=0,\"\",VLOOKUP(A:A,'Simulador de pontos para progr.'!A:J,10,0))","v":""},{"$f":"IF(D:D=\"Parcialmente Deferido\",\"Pontuação aproveitada (sem considerar regra de redimensionamento): \"&VLOOKUP(A:A,'Simulador de pontos para progr.'!A:H,6,0)&\" pontos. \"&IF(VLOOKUP(A:A,'Simulador de pontos para progr.'!A:K,11,0)=0,\"\",VLOOKUP(A:A,'Simulador de pontos para progr.'!A:K,11,0)),IF(VLOOKUP(A:A,'Simulador de pontos para progr.'!A:K,11,0)=0,\"\",VLOOKUP(A:A,'Simulador de pontos para progr.'!A:K,11,0)))","v":""},"Esconde"]
[{"$f":"'Simulador de pontos para progr.'!A36","v":"D2.1.3"},{"$f":"VLOOKUP(A:A,'Simulador de pontos para progr.'!A:B,2,0)","v":"Identificações geográficas registradas"},null,{"$f":"IF(VLOOKUP(A:A,'Simulador de pontos para progr.'!A:J,10,0)=0,\"\",VLOOKUP(A:A,'Simulador de pontos para progr.'!A:J,10,0))","v":""},{"$f":"IF(D:D=\"Parcialmente Deferido\",\"Pontuação aproveitada (sem considerar regra de redimensionamento): \"&VLOOKUP(A:A,'Simulador de pontos para progr.'!A:H,6,0)&\" pontos. \"&IF(VLOOKUP(A:A,'Simulador de pontos para progr.'!A:K,11,0)=0,\"\",VLOOKUP(A:A,'Simulador de pontos para progr.'!A:K,11,0)),IF(VLOOKUP(A:A,'Simulador de pontos para progr.'!A:K,11,0)=0,\"\",VLOOKUP(A:A,'Simulador de pontos para progr.'!A:K,11,0)))","v":""},"Esconde"]
[{"$f":"'Simulador de pontos para progr.'!A37","v":"D2.1.4"},{"$f":"VLOOKUP(A:A,'Simulador de pontos para progr.'!A:B,2,0)","v":"Desenhos industriais registrados"},null,{"$f":"IF(VLOOKUP(A:A,'Simulador de pontos para progr.'!A:J,10,0)=0,\"\",VLOOKUP(A:A,'Simulador de pontos para progr.'!A:J,10,0))","v":""},{"$f":"IF(D:D=\"Parcialmente Deferido\",\"Pontuação aproveitada (sem considerar regra de redimensionamento): \"&VLOOKUP(A:A,'Simulador de pontos para progr.'!A:H,6,0)&\" pontos. \"&IF(VLOOKUP(A:A,'Simulador de pontos para progr.'!A:K,11,0)=0,\"\",VLOOKUP(A:A,'Simulador de pontos para progr.'!A:K,11,0)),IF(VLOOKUP(A:A,'Simulador de pontos para progr.'!A:K,11,0)=0,\"\",VLOOKUP(A:A,'Simulador de pontos para progr.'!A:K,11,0)))","v":""},"Esconde"]
[{"$f":"'Simulador de pontos para progr.'!A38","v":"D2.1.5"},{"$f":"VLOOKUP(A:A,'Simulador de pontos para progr.'!A:B,2,0)","v":"Produto criado, desenvolvido, registrado e patenteado/modelo de utilidade"},null,{"$f":"IF(VLOOKUP(A:A,'Simulador de pontos para progr.'!A:J,10,0)=0,\"\",VLOOKUP(A:A,'Simulador de pontos para progr.'!A:J,10,0))","v":""},{"$f":"IF(D:D=\"Parcialmente Deferido\",\"Pontuação aproveitada (sem considerar regra de redimensionamento): \"&VLOOKUP(A:A,'Simulador de pontos para progr.'!A:H,6,0)&\" pontos. \"&IF(VLOOKUP(A:A,'Simulador de pontos para progr.'!A:K,11,0)=0,\"\",VLOOKUP(A:A,'Simulador de pontos para progr.'!A:K,11,0)),IF(VLOOKUP(A:A,'Simulador de pontos para progr.'!A:K,11,0)=0,\"\",VLOOKUP(A:A,'Simulador de pontos para progr.'!A:K,11,0)))","v":""},"Esconde"]
[{"$f":"'Simulador de pontos para progr.'!A39","v":"D2.1.6"},{"$f":"VLOOKUP(A:A,'Simulador de pontos para progr.'!A:B,2,0)","v":"Cultivares"},null,{"$f":"IF(VLOOKUP(A:A,'Simulador de pontos para progr.'!A:J,10,0)=0,\"\",VLOOKUP(A:A,'Simulador de pontos para progr.'!A:J,10,0))","v":""},{"$f":"IF(D:D=\"Parcialmente Deferido\",\"Pontuação aproveitada (sem considerar regra de redimensionamento): \"&VLOOKUP(A:A,'Simulador de pontos para progr.'!A:H,6,0)&\" pontos. \"&IF(VLOOKUP(A:A,'Simulador de pontos para progr.'!A:K,11,0)=0,\"\",VLOOKUP(A:A,'Simulador de pontos para progr.'!A:K,11,0)),IF(VLOOKUP(A:A,'Simulador de pontos para progr.'!A:K,11,0)=0,\"\",VLOOKUP(A:A,'Simulador de pontos para progr.'!A:K,11,0)))","v":""},"Esconde"]
[{"$f":"'Simulador de pontos para progr.'!A42","v":"D2.2.1"},{"$f":"VLOOKUP(A:A,'Simulador de pontos para progr.'!A:B,2,0)","v":"Textos em jornal e/ou revista"},null,{"$f":"IF(VLOOKUP(A:A,'Simulador de pontos para progr.'!A:J,10,0)=0,\"\",VLOOKUP(A:A,'Simulador de pontos para progr.'!A:J,10,0))","v":""},{"$f":"IF(D:D=\"Parcialmente Deferido\",\"Pontuação aproveitada (sem considerar regra de redimensionamento): \"&VLOOKUP(A:A,'Simulador de pontos para progr.'!A:H,6,0)&\" pontos. \"&IF(VLOOKUP(A:A,'Simulador de pontos para progr.'!A:K,11,0)=0,\"\",VLOOKUP(A:A,'Simulador de pontos para progr.'!A:K,11,0)),IF(VLOOKUP(A:A,'Simulador de pontos para progr.'!A:K,11,0)=0,\"\",VLOOKUP(A:A,'Simulador de pontos para progr.'!A:K,11,0)))","v":""},"Esconde"]
[{"$f":"'Simulador de pontos para progr.'!A43","v":"D2.2.2"},{"$f":"VLOOKUP(A:A,'Simulador de pontos para progr.'!A:B,2,0)","v":"Artigos completos publicados em periódicos técnicos cientificos"},null,{"$f":"IF(VLOOKUP(A:A,'Simulador de pontos para progr.'!A:J,10,0)=0,\"\",VLOOKUP(A:A,'Simulador de pontos para progr.'!A:J,10,0))","v":""},{"$f":"IF(D:D=\"Parcialmente Deferido\",\"Pontuação aproveitada (sem considerar regra de redimensionamento): \"&VLOOKUP(A:A,'Simulador de pontos para progr.'!A:H,6,0)&\" pontos. \"&IF(VLOOKUP(A:A,'Simulador de pontos para progr.'!A:K,11,0)=0,\"\",VLOOKUP(A:A,'Simulador de pontos para progr.'!A:K,11,0)),IF(VLOOKUP(A:A,'Simulador de pontos para progr.'!A:K,11,0)=0,\"\",VLOOKUP(A:A,'Simulador de pontos para progr.'!A:K,11,0)))","v":""},"Esconde"]
[{"$f":"'Simulador de pontos para progr.'!A44","v":"D2.2.3"},{"$f":"VLOOKUP(A:A,'Simulador de pontos para progr.'!A:B,2,0)","v":"Capítulos de livros"},null,{"$f":"IF(VLOOKUP(A:A,'Simulador de pontos para progr.'!A:J,10,0)=0,\"\",VLOOKUP(A:A,'Simulador de pontos para progr.'!A:J,10,0))","v":""},{"$f":"IF(D:D=\"Parcialmente Deferido\",\"Pontuação aproveitada (sem considerar regra de redimensionamento): \"&VLOOKUP(A:A,'Simulador de pontos para progr.'!A:H,6,0)&\" pontos. \"&IF(VLOOKUP(A:A,'Simulador de pontos para progr.'!A:K,11,0)=0,\"\",VLOOKUP(A:A,'Simulador de pontos para progr.'!A:K,11,0)),IF(VLOOKUP(A:A,'Simulador de pontos para progr.'!A:K,11,0)=0,\"\",VLOOKUP(A:A,'Simulador de pontos para progr.'!A:K,11,0)))","v":""},"Esconde"]
[{"$f":"'Simulador de pontos para progr.'!A45","v":"D2.2.4"},{"$f":"VLOOKUP(A:A,'Simulador de pontos para progr.'!A:B,2,0)","v":"Tradução de livro"},null,{"$f":"IF(VLOOKUP(A:A,'Simulador de pontos para progr.'!A:J,10,0)=0,\"\",VLOOKUP(A:A,'Simulador de pontos para progr.'!A:J,10,0))","v":""},{"$f":"IF(D:D=\"Parcialmente Deferido\",\"Pontuação aproveitada (sem considerar regra de redimensionamento): \"&VLOOKUP(A:A,'Simulador de pontos para progr.'!A:H,6,0)&\" pontos. \"&IF(VLOOKUP(A:A,'Simulador de pontos para progr.'!A:K,11,0)=0,\"\",VLOOKUP(A:A,'Simulador de pontos para progr.'!A:K,11,0)),IF(VLOOKUP(A:A,'Simulador de pontos para progr.'!A:K,11,0)=0,\"\",VLOOKUP(A:A,'Simulador de pontos para progr.'!A:K,11,0)))","v":""},"Esconde"]
[{"$f":"'Simulador de pontos para progr.'!A46","v":"D2.2.5"},{"$f":"VLOOKUP(A:A,'Simulador de pontos para progr.'!A:B,2,0)","v":"Tradução de artigo científico"},null,{"$f":"IF(VLOOKUP(A:A,'Simulador de pontos para progr.'!A:J,10,0)=0,\"\",VLOOKUP(A:A,'Simulador de pontos para progr.'!A:J,10,0))","v":""},{"$f":"IF(D:D=\"Parcialmente Deferido\",\"Pontuação aproveitada (sem considerar regra de redimensionamento): \"&VLOOKUP(A:A,'Simulador de pontos para progr.'!A:H,6,0)&\" pontos. \"&IF(VLOOKUP(A:A,'Simulador de pontos para progr.'!A:K,11,0)=0,\"\",VLOOKUP(A:A,'Simulador de pontos para progr.'!A:K,11,0)),IF(VLOOKUP(A:A,'Simulador de pontos para progr.'!A:K,11,0)=0,\"\",VLOOKUP(A:A,'Simulador de pontos para progr.'!A:K,11,0)))","v":""},"Esconde"]
[{"$f":"'Simulador de pontos para progr.'!A47","v":"D2.2.6"},{"$f":"VLOOKUP(A:A,'Simulador de pontos para progr.'!A:B,2,0)","v":"Organização de obra"},null,{"$f":"IF(VLOOKUP(A:A,'Simulador de pontos para progr.'!A:J,10,0)=0,\"\",VLOOKUP(A:A,'Simulador de pontos para progr.'!A:J,10,0))","v":""},{"$f":"IF(D:D=\"Parcialmente Deferido\",\"Pontuação aproveitada (sem considerar regra de redimensionamento): \"&VLOOKUP(A:A,'Simulador de pontos para progr.'!A:H,6,0)&\" pontos. \"&IF(VLOOKUP(A:A,'Simulador de pontos para progr.'!A:K,11,0)=0,\"\",VLOOKUP(A:A,'Simulador de pontos para progr.'!A:K,11,0)),IF(VLOOKUP(A:A,'Simulador de pontos para progr.'!A:K,11,0)=0,\"\",VLOOKUP(A:A,'Simulador de pontos para progr.'!A:K,11,0)))","v":""},"Esconde"]
[{"$f":"'Simulador de pontos para progr.'!A48","v":"D2.2.7"},{"$f":"VLOOKUP(A:A,'Simulador de pontos para progr.'!A:B,2,0)","v":"Artigos Publicados em periódicos do Extrato 1(A1,A2,B1,B2)  da CAPES."},null,{"$f":"IF(VLOOKUP(A:A,'Simulador de pontos para progr.'!A:J,10,0)=0,\"\",VLOOKUP(A:A,'Simulador de pontos para progr.'!A:J,10,0))","v":""},{"$f":"IF(D:D=\"Parcialmente Deferido\",\"Pontuação aproveitada (sem considerar regra de redimensionamento): \"&VLOOKUP(A:A,'Simulador de pontos para progr.'!A:H,6,0)&\" pontos. \"&IF(VLOOKUP(A:A,'Simulador de pontos para progr.'!A:K,11,0)=0,\"\",VLOOKUP(A:A,'Simulador de pontos para progr.'!A:K,11,0)),IF(VLOOKUP(A:A,'Simulador de pontos para progr.'!A:K,11,0)=0,\"\",VLOOKUP(A:A,'Simulador de pontos para progr.'!A:K,11,0)))","v":""},"Esconde"]
[{"$f":"'Simulador de pontos para progr.'!A49","v":"D2.2.8"},{"$f":"VLOOKUP(A:A,'Simulador de pontos para progr.'!A:B,2,0)","v":"Artigos publicados em periodicos do Extrato 2(B3,B4 E B5) da CAPES;"},null,{"$f":"IF(VLOOKUP(A:A,'Simulador de pontos para progr.'!A:J,10,0)=0,\"\",VLOOKUP(A:A,'Simulador de pontos para progr.'!A:J,10,0))","v":""},{"$f":"IF(D:D=\"Parcialmente Deferido\",\"Pontuação aproveitada (sem considerar regra de redimensionamento): \"&VLOOKUP(A:A,'Simulador de pontos para progr.'!A:H,6,0)&\" pontos. \"&IF(VLOOKUP(A:A,'Simulador de pontos para progr.'!A:K,11,0)=0,\"\",VLOOKUP(A:A,'Simulador de pontos para progr.'!A:K,11,0)),IF(VLOOKUP(A:A,'Simulador de pontos para progr.'!A:K,11,0)=0,\"\",VLOOKUP(A:A,'Simulador de pontos para progr.'!A:K,11,0)))","v":""},"Esconde"]
[{"$f":"'Simulador de pontos para progr.'!A50","v":"D2.2.9"},{"$f":"VLOOKUP(A:A,'Simulador de pontos para progr.'!A:B,2,0)","v":"Livro publicado"},null,{"$f":"IF(VLOOKUP(A:A,'Simulador de pontos para progr.'!A:J,10,0)=0,\"\",VLOOKUP(A:A,'Simulador de pontos para progr.'!A:J,10,0))","v":""},{"$f":"IF(D:D=\"Parcialmente Deferido\",\"Pontuação aproveitada (sem considerar regra de redimensionamento): \"&VLOOKUP(A:A,'Simulador de pontos para progr.'!A:H,6,0)&\" pontos. \"&IF(VLOOKUP(A:A,'Simulador de pontos para progr.'!A:K,11,0)=0,\"\",VLOOKUP(A:A,'Simulador de pontos para progr.'!A:K,11,0)),IF(VLOOKUP(A:A,'Simulador de pontos para progr.'!A:K,11,0)=0,\"\",VLOOKUP(A:A,'Simulador de pontos para progr.'!A:K,11,0)))","v":""},"Esconde"]
[{"$f":"'Simulador de pontos para progr.'!A51","v":"D2.2.10"},{"$f":"VLOOKUP(A:A,'Simulador de pontos para progr.'!A:B,2,0)","v":"Resumo de artigos publicados em Anais"},null,{"$f":"IF(VLOOKUP(A:A,'Simulador de pontos para progr.'!A:J,10,0)=0,\"\",VLOOKUP(A:A,'Simulador de pontos para progr.'!A:J,10,0))","v":""},{"$f":"IF(D:D=\"Parcialmente Deferido\",\"Pontuação aproveitada (sem considerar regra de redimensionamento): \"&VLOOKUP(A:A,'Simulador de pontos para progr.'!A:H,6,0)&\" pontos. \"&IF(VLOOKUP(A:A,'Simulador de pontos para progr.'!A:K,11,0)=0,\"\",VLOOKUP(A:A,'Simulador de pontos para progr.'!A:K,11,0)),IF(VLOOKUP(A:A,'Simulador de pontos para progr.'!A:K,11,0)=0,\"\",VLOOKUP(A:A,'Simulador de pontos para progr.'!A:K,11,0)))","v":""},"Esconde"]
[{"$f":"'Simulador de pontos para progr.'!A52","v":"D2.2.11"},{"$f":"VLOOKUP(A:A,'Simulador de pontos para progr.'!A:B,2,0)","v":"Artigos publicados em Anais"},null,{"$f":"IF(VLOOKUP(A:A,'Simulador de pontos para progr.'!A:J,10,0)=0,\"\",VLOOKUP(A:A,'Simulador de pontos para progr.'!A:J,10,0))","v":""},{"$f":"IF(D:D=\"Parcialmente Deferido\",\"Pontuação aproveitada (sem considerar regra de redimensionamento): \"&VLOOKUP(A:A,'Simulador de pontos para progr.'!A:H,6,0)&\" pontos. \"&IF(VLOOKUP(A:A,'Simulador de pontos para progr.'!A:K,11,0)=0,\"\",VLOOKUP(A:A,'Simulador de pontos para progr.'!A:K,11,0)),IF(VLOOKUP(A:A,'Simulador de pontos para progr.'!A:K,11,0)=0,\"\",VLOOKUP(A:A,'Simulador de pontos para progr.'!A:K,11,0)))","v":""},"Esconde"]
[{"$f":"'Simulador de pontos para progr.'!$A$55","v":"D2.3.1"},{"$f":"VLOOKUP(A:A,'Simulador de pontos para progr.'!A:B,2,0)","v":"Atividades desenvolvidas por disciplina e turma de alunos da Feevale com a comunidade."},null,{"$f":"IF(VLOOKUP(A:A,'Simulador de pontos para progr.'!A:J,10,0)=0,\"\",VLOOKUP(A:A,'Simulador de pontos para progr.'!A:J,10,0))","v":""},{"$f":"IF(D:D=\"Parcialmente Deferido\",\"Pontuação aproveitada (sem considerar regra de redimensionamento): \"&VLOOKUP(A:A,'Simulador de pontos para progr.'!A:H,6,0)&\" pontos. \"&IF(VLOOKUP(A:A,'Simulador de pontos para progr.'!A:K,11,0)=0,\"\",VLOOKUP(A:A,'Simulador de pontos para progr.'!A:K,11,0)),IF(VLOOKUP(A:A,'Simulador de pontos para progr.'!A:K,11,0)=0,\"\",VLOOKUP(A:A,'Simulador de pontos para progr.'!A:K,11,0)))","v":""},{"$f":"IF(OR(D:D=\"Indeferido\",D:D=\"Parcialmente Deferido\",A:A=\"Não houve itens indeferidos ou parcialmente indeferidos.\"),\"Mostra\",\"Esconde\")","v":"Esconde"}]
[{"$f":"'Simulador de pontos para progr.'!A58","v":"D2.4.1"},{"$f":"VLOOKUP(A:A,'Simulador de pontos para progr.'!A:B,2,0)","v":"Bolsas CNPQ produtividade"},null,{"$f":"IF(VLOOKUP(A:A,'Simulador de pontos para progr.'!A:J,10,0)=0,\"\",VLOOKUP(A:A,'Simulador de pontos para progr.'!A:J,10,0))","v":""},{"$f":"IF(D:D=\"Parcialmente Deferido\",\"Pontuação aproveitada (sem considerar regra de redimensionamento): \"&VLOOKUP(A:A,'Simulador de pontos para progr.'!A:H,6,0)&\" pontos. \"&IF(VLOOKUP(A:A,'Simulador de pontos para progr.'!A:K,11,0)=0,\"\",VLOOKUP(A:A,'Simulador de pontos para progr.'!A:K,11,0)),IF(VLOOKUP(A:A,'Simulador de pontos para progr.'!A:K,11,0)=0,\"\",VLOOKUP(A:A,'Simulador de pontos para progr.'!A:K,11,0)))","v":""},"Esconde"]
[{"$f":"'Simulador de pontos para progr.'!A59","v":"D2.4.2"},{"$f":"VLOOKUP(A:A,'Simulador de pontos para progr.'!A:B,2,0)","v":"Bolsas para alunos fomento externo"},null,{"$f":"IF(VLOOKUP(A:A,'Simulador de pontos para progr.'!A:J,10,0)=0,\"\",VLOOKUP(A:A,'Simulador de pontos para progr.'!A:J,10,0))","v":""},{"$f":"IF(D:D=\"Parcialmente Deferido\",\"Pontuação aproveitada (sem considerar regra de redimensionamento): \"&VLOOKUP(A:A,'Simulador de pontos para progr.'!A:H,6,0)&\" pontos. \"&IF(VLOOKUP(A:A,'Simulador de pontos para progr.'!A:K,11,0)=0,\"\",VLOOKUP(A:A,'Simulador de pontos para progr.'!A:K,11,0)),IF(VLOOKUP(A:A,'Simulador de pontos para progr.'!A:K,11,0)=0,\"\",VLOOKUP(A:A,'Simulador de pontos para progr.'!A:K,11,0)))","v":""},"Esconde"]
[{"$f":"'Simulador de pontos para progr.'!A60","v":"D2.4.3"},{"$f":"VLOOKUP(A:A,'Simulador de pontos para progr.'!A:B,2,0)","v":"Apoio financeiro para projetos com envolvimento de entidades"},null,{"$f":"IF(VLOOKUP(A:A,'Simulador de pontos para progr.'!A:J,10,0)=0,\"\",VLOOKUP(A:A,'Simulador de pontos para progr.'!A:J,10,0))","v":""},{"$f":"IF(D:D=\"Parcialmente Deferido\",\"Pontuação aproveitada (sem considerar regra de redimensionamento): \"&VLOOKUP(A:A,'Simulador de pontos para progr.'!A:H,6,0)&\" pontos. \"&IF(VLOOKUP(A:A,'Simulador de pontos para progr.'!A:K,11,0)=0,\"\",VLOOKUP(A:A,'Simulador de pontos para progr.'!A:K,11,0)),IF(VLOOKUP(A:A,'Simulador de pontos para progr.'!A:K,11,0)=0,\"\",VLOOKUP(A:A,'Simulador de pontos para progr.'!A:K,11,0)))","v":""},"Esconde"]
[{"$f":"'Simulador de pontos para progr.'!A61","v":"D2.4.4"},{"$f":"VLOOKUP(A:A,'Simulador de pontos para progr.'!A:B,2,0)","v":"Recursos para organização de eventos - Regional"},null,{"$f":"IF(VLOOKUP(A:A,'Simulador de pontos para progr.'!A:J,10,0)=0,\"\",VLOOKUP(A:A,'Simulador de pontos para progr.'!A:J,10,0))","v":""},{"$f":"IF(D:D=\"Parcialmente Deferido\",\"Pontuação aproveitada (sem considerar regra de redimensionamento): \"&VLOOKUP(A:A,'Simulador de pontos para progr.'!A:H,6,0)&\" pontos. \"&IF(VLOOKUP(A:A,'Simulador de pontos para progr.'!A:K,11,0)=0,\"\",VLOOKUP(A:A,'Simulador de pontos para progr.'!A:K,11,0)),IF(VLOOKUP(A:A,'Simulador de pontos para progr.'!A:K,11,0)=0,\"\",VLOOKUP(A:A,'Simulador de pontos para progr.'!A:K,11,0)))","v":""},"Esconde"]
[{"$f":"'Simulador de pontos para progr.'!A62","v":"D2.4.5"},{"$f":"VLOOKUP(A:A,'Simulador de pontos para progr.'!A:B,2,0)","v":"Recursos para organização de eventos - Nacional"},null,{"$f":"IF(VLOOKUP(A:A,'Simulador de pontos para progr.'!A:J,10,0)=0,\"\",VLOOKUP(A:A,'Simulador de pontos para progr.'!A:J,10,0))","v":""},{"$f":"IF(D:D=\"Parcialmente Deferido\",\"Pontuação aproveitada (sem considerar regra de redimensionamento): \"&VLOOKUP(A:A,'Simulador de pontos para progr.'!A:H,6,0)&\" pontos. \"&IF(VLOOKUP(A:A,'Simulador de pontos para progr.'!A:K,11,0)=0,\"\",VLOOKUP(A:A,'Simulador de pontos para progr.'!A:K,11,0)),IF(VLOOKUP(A:A,'Simulador de pontos para progr.'!A:K,11,0)=0,\"\",VLOOKUP(A:A,'Simulador de pontos para progr.'!A:K,11,0)))","v":""},"Esconde"]
[{"$f":"'Simulador de pontos para progr.'!A63","v":"D2.4.6"},{"$f":"VLOOKUP(A:A,'Simulador de pontos para progr.'!A:B,2,0)","v":"Recursos para organização de eventos - Internacional"},null,{"$f":"IF(VLOOKUP(A:A,'Simulador de pontos para progr.'!A:J,10,0)=0,\"\",VLOOKUP(A:A,'Simulador de pontos para progr.'!A:J,10,0))","v":""},{"$f":"IF(D:D=\"Parcialmente Deferido\",\"Pontuação aproveitada (sem considerar regra de redimensionamento): \"&VLOOKUP(A:A,'Simulador de pontos para progr.'!A:H,6,0)&\" pontos. \"&IF(VLOOKUP(A:A,'Simulador de pontos para progr.'!A:K,11,0)=0,\"\",VLOOKUP(A:A,'Simulador de pontos para progr.'!A:K,11,0)),IF(VLOOKUP(A:A,'Simulador de pontos para progr.'!A:K,11,0)=0,\"\",VLOOKUP(A:A,'Simulador de pontos para progr.'!A:K,11,0)))","v":""},"Esconde"]
[{"$f":"'Simulador de pontos para progr.'!A64","v":"D2.4.7"},{"$f":"VLOOKUP(A:A,'Simulador de pontos para progr.'!A:B,2,0)","v":"Geração de Superavit a partir da realização de eventos"},null,{"$f":"IF(VLOOKUP(A:A,'Simulador de pontos para progr.'!A:J,10,0)=0,\"\",VLOOKUP(A:A,'Simulador de pontos para progr.'!A:J,10,0))","v":""},{"$f":"IF(D:D=\"Parcialmente Deferido\",\"Pontuação aproveitada (sem considerar regra de redimensionamento): \"&VLOOKUP(A:A,'Simulador de pontos para progr.'!A:H,6,0)&\" pontos. \"&IF(VLOOKUP(A:A,'Simulador de pontos para progr.'!A:K,11,0)=0,\"\",VLOOKUP(A:A,'Simulador de pontos para progr.'!A:K,11,0)),IF(VLOOKUP(A:A,'Simulador de pontos para progr.'!A:K,11,0)=0,\"\",VLOOKUP(A:A,'Simulador de pontos para progr.'!A:K,11,0)))","v":""},"Esconde"]
[{"$f":"'Simulador de pontos para progr.'!A65","v":"D2.4.8"},{"$f":"VLOOKUP(A:A,'Simulador de pontos para progr.'!A:B,2,0)","v":"Custeio de projetos com agencias de fomento"},null,{"$f":"IF(VLOOKUP(A:A,'Simulador de pontos para progr.'!A:J,10,0)=0,\"\",VLOOKUP(A:A,'Simulador de pontos para progr.'!A:J,10,0))","v":""},{"$f":"IF(D:D=\"Parcialmente Deferido\",\"Pontuação aproveitada (sem considerar regra de redimensionamento): \"&VLOOKUP(A:A,'Simulador de pontos para progr.'!A:H,6,0)&\" pontos. \"&IF(VLOOKUP(A:A,'Simulador de pontos para progr.'!A:K,11,0)=0,\"\",VLOOKUP(A:A,'Simulador de pontos para progr.'!A:K,11,0)),IF(VLOOKUP(A:A,'Simulador de pontos para progr.'!A:K,11,0)=0,\"\",VLOOKUP(A:A,'Simulador de pontos para progr.'!A:K,11,0)))","v":""},"Esconde"]
[{"$f":"'Simulador de pontos para progr.'!A66","v":"D2.4.9"},{"$f":"VLOOKUP(A:A,'Simulador de pontos para progr.'!A:B,2,0)","v":"Serviços com Superavit"},null,{"$f":"IF(VLOOKUP(A:A,'Simulador de pontos para progr.'!A:J,10,0)=0,\"\",VLOOKUP(A:A,'Simulador de pontos para progr.'!A:J,10,0))","v":""},{"$f":"IF(D:D=\"Parcialmente Deferido\",\"Pontuação aproveitada (sem considerar regra de redimensionamento): \"&VLOOKUP(A:A,'Simulador de pontos para progr.'!A:H,6,0)&\" pontos. \"&IF(VLOOKUP(A:A,'Simulador de pontos para progr.'!A:K,11,0)=0,\"\",VLOOKUP(A:A,'Simulador de pontos para progr.'!A:K,11,0)),IF(VLOOKUP(A:A,'Simulador de pontos para progr.'!A:K,11,0)=0,\"\",VLOOKUP(A:A,'Simulador de pontos para progr.'!A:K,11,0)))","v":""},"Esconde"]
[{"$f":"'Simulador de pontos para progr.'!A69","v":"D2.5.1"},{"$f":"VLOOKUP(A:A,'Simulador de pontos para progr.'!A:B,2,0)","v":"Produção artística"},null,{"$f":"IF(VLOOKUP(A:A,'Simulador de pontos para progr.'!A:J,10,0)=0,\"\",VLOOKUP(A:A,'Simulador de pontos para progr.'!A:J,10,0))","v":""},{"$f":"IF(D:D=\"Parcialmente Deferido\",\"Pontuação aproveitada (sem considerar regra de redimensionamento): \"&VLOOKUP(A:A,'Simulador de pontos para progr.'!A:H,6,0)&\" pontos. \"&IF(VLOOKUP(A:A,'Simulador de pontos para progr.'!A:K,11,0)=0,\"\",VLOOKUP(A:A,'Simulador de pontos para progr.'!A:K,11,0)),IF(VLOOKUP(A:A,'Simulador de pontos para progr.'!A:K,11,0)=0,\"\",VLOOKUP(A:A,'Simulador de pontos para progr.'!A:K,11,0)))","v":""},"Esconde"]
[{"$f":"'Simulador de pontos para progr.'!A70","v":"D2.5.2"},{"$f":"VLOOKUP(A:A,'Simulador de pontos para progr.'!A:B,2,0)","v":"Obra artística"},null,{"$f":"IF(VLOOKUP(A:A,'Simulador de pontos para progr.'!A:J,10,0)=0,\"\",VLOOKUP(A:A,'Simulador de pontos para progr.'!A:J,10,0))","v":""},{"$f":"IF(D:D=\"Parcialmente Deferido\",\"Pontuação aproveitada (sem considerar regra de redimensionamento): \"&VLOOKUP(A:A,'Simulador de pontos para progr.'!A:H,6,0)&\" pontos. \"&IF(VLOOKUP(A:A,'Simulador de pontos para progr.'!A:K,11,0)=0,\"\",VLOOKUP(A:A,'Simulador de pontos para progr.'!A:K,11,0)),IF(VLOOKUP(A:A,'Simulador de pontos para progr.'!A:K,11,0)=0,\"\",VLOOKUP(A:A,'Simulador de pontos para progr.'!A:K,11,0)))","v":""},"Esconde"]
[{"$f":"'Simulador de pontos para progr.'!A71","v":"D2.5.3"},{"$f":"VLOOKUP(A:A,'Simulador de pontos para progr.'!A:B,2,0)","v":"Apresentação de rádio ou TV"},null,{"$f":"IF(VLOOKUP(A:A,'Simulador de pontos para progr.'!A:J,10,0)=0,\"\",VLOOKUP(A:A,'Simulador de pontos para progr.'!A:J,10,0))","v":""},{"$f":"IF(D:D=\"Parcialmente Deferido\",\"Pontuação aproveitada (sem considerar regra de redimensionamento): \"&VLOOKUP(A:A,'Simulador de pontos para progr.'!A:H,6,0)&\" pontos. \"&IF(VLOOKUP(A:A,'Simulador de pontos para progr.'!A:K,11,0)=0,\"\",VLOOKUP(A:A,'Simulador de pontos para progr.'!A:K,11,0)),IF(VLOOKUP(A:A,'Simulador de pontos para progr.'!A:K,11,0)=0,\"\",VLOOKUP(A:A,'Simulador de pontos para progr.'!A:K,11,0)))","v":""},"Esconde"]
[{"$f":"'Simulador de pontos para progr.'!A72","v":"D2.5.4"},{"$f":"VLOOKUP(A:A,'Simulador de pontos para progr.'!A:B,2,0)","v":"Criação e execução de programa de rádio ou TV"},null,{"$f":"IF(VLOOKUP(A:A,'Simulador de pontos para progr.'!A:J,10,0)=0,\"\",VLOOKUP(A:A,'Simulador de pontos para progr.'!A:J,10,0))","v":""},{"$f":"IF(D:D=\"Parcialmente Deferido\",\"Pontuação aproveitada (sem considerar regra de redimensionamento): \"&VLOOKUP(A:A,'Simulador de pontos para progr.'!A:H,6,0)&\" pontos. \"&IF(VLOOKUP(A:A,'Simulador de pontos para progr.'!A:K,11,0)=0,\"\",VLOOKUP(A:A,'Simulador de pontos para progr.'!A:K,11,0)),IF(VLOOKUP(A:A,'Simulador de pontos para progr.'!A:K,11,0)=0,\"\",VLOOKUP(A:A,'Simulador de pontos para progr.'!A:K,11,0)))","v":""},"Esconde"]
[{"$f":"'Simulador de pontos para progr.'!A73","v":"D2.5.5"},{"$f":"VLOOKUP(A:A,'Simulador de pontos para progr.'!A:B,2,0)","v":"Sonoplastia(cinema,musica,teatro,rádio,televisão)"},null,{"$f":"IF(VLOOKUP(A:A,'Simulador de pontos para progr.'!A:J,10,0)=0,\"\",VLOOKUP(A:A,'Simulador de pontos para progr.'!A:J,10,0))","v":""},{"$f":"IF(D:D=\"Parcialmente Deferido\",\"Pontuação aproveitada (sem considerar regra de redimensionamento): \"&VLOOKUP(A:A,'Simulador de pontos para progr.'!A:H,6,0)&\" pontos. \"&IF(VLOOKUP(A:A,'Simulador de pontos para progr.'!A:K,11,0)=0,\"\",VLOOKUP(A:A,'Simulador de pontos para progr.'!A:K,11,0)),IF(VLOOKUP(A:A,'Simulador de pontos para progr.'!A:K,11,0)=0,\"\",VLOOKUP(A:A,'Simulador de pontos para progr.'!A:K,11,0)))","v":""},"Esconde"]
[{"$f":"'Simulador de pontos para progr.'!A74","v":"D2.5.6"},{"$f":"VLOOKUP(A:A,'Simulador de pontos para progr.'!A:B,2,0)","v":"Crítica artística ou cultural publicada"},null,{"$f":"IF(VLOOKUP(A:A,'Simulador de pontos para progr.'!A:J,10,0)=0,\"\",VLOOKUP(A:A,'Simulador de pontos para progr.'!A:J,10,0))","v":""},{"$f":"IF(D:D=\"Parcialmente Deferido\",\"Pontuação aproveitada (sem considerar regra de redimensionamento): \"&VLOOKUP(A:A,'Simulador de pontos para progr.'!A:H,6,0)&\" pontos. \"&IF(VLOOKUP(A:A,'Simulador de pontos para progr.'!A:K,11,0)=0,\"\",VLOOKUP(A:A,'Simulador de pontos para progr.'!A:K,11,0)),IF(VLOOKUP(A:A,'Simulador de pontos para progr.'!A:K,11,0)=0,\"\",VLOOKUP(A:A,'Simulador de pontos para progr.'!A:K,11,0)))","v":""},"Esconde"]
[{"$f":"'Simulador de pontos para progr.'!A75","v":"D2.5.7"},{"$f":"VLOOKUP(A:A,'Simulador de pontos para progr.'!A:B,2,0)","v":"Roteiro ou adaptação ou versão de obra de ficção"},null,{"$f":"IF(VLOOKUP(A:A,'Simulador de pontos para progr.'!A:J,10,0)=0,\"\",VLOOKUP(A:A,'Simulador de pontos para progr.'!A:J,10,0))","v":""},{"$f":"IF(D:D=\"Parcialmente Deferido\",\"Pontuação aproveitada (sem considerar regra de redimensionamento): \"&VLOOKUP(A:A,'Simulador de pontos para progr.'!A:H,6,0)&\" pontos. \"&IF(VLOOKUP(A:A,'Simulador de pontos para progr.'!A:K,11,0)=0,\"\",VLOOKUP(A:A,'Simulador de pontos para progr.'!A:K,11,0)),IF(VLOOKUP(A:A,'Simulador de pontos para progr.'!A:K,11,0)=0,\"\",VLOOKUP(A:A,'Simulador de pontos para progr.'!A:K,11,0)))","v":""},"Esconde"]
[{"$f":"'Simulador de pontos para progr.'!A76","v":"D2.5.8"},{"$f":"VLOOKUP(A:A,'Simulador de pontos para progr.'!A:B,2,0)","v":"Direção de espetáculo cênico ou musical"},null,{"$f":"IF(VLOOKUP(A:A,'Simulador de pontos para progr.'!A:J,10,0)=0,\"\",VLOOKUP(A:A,'Simulador de pontos para progr.'!A:J,10,0))","v":""},{"$f":"IF(D:D=\"Parcialmente Deferido\",\"Pontuação aproveitada (sem considerar regra de redimensionamento): \"&VLOOKUP(A:A,'Simulador de pontos para progr.'!A:H,6,0)&\" pontos. \"&IF(VLOOKUP(A:A,'Simulador de pontos para progr.'!A:K,11,0)=0,\"\",VLOOKUP(A:A,'Simulador de pontos para progr.'!A:K,11,0)),IF(VLOOKUP(A:A,'Simulador de pontos para progr.'!A:K,11,0)=0,\"\",VLOOKUP(A:A,'Simulador de pontos para progr.'!A:K,11,0)))","v":""},"Esconde"]
[{"$f":"'Simulador de pontos para progr.'!A77","v":"D2.5.9"},{"$f":"VLOOKUP(A:A,'Simulador de pontos para progr.'!A:B,2,0)","v":"Mostra individual de obra fotográfica ou de artes Visuais"},null,{"$f":"IF(VLOOKUP(A:A,'Simulador de pontos para progr.'!A:J,10,0)=0,\"\",VLOOKUP(A:A,'Simulador de pontos para progr.'!A:J,10,0))","v":""},{"$f":"IF(D:D=\"Parcialmente Deferido\",\"Pontuação aproveitada (sem considerar regra de redimensionamento): \"&VLOOKUP(A:A,'Simulador de pontos para progr.'!A:H,6,0)&\" pontos. \"&IF(VLOOKUP(A:A,'Simulador de pontos para progr.'!A:K,11,0)=0,\"\",VLOOKUP(A:A,'Simulador de pontos para progr.'!A:K,11,0)),IF(VLOOKUP(A:A,'Simulador de pontos para progr.'!A:K,11,0)=0,\"\",VLOOKUP(A:A,'Simulador de pontos para progr.'!A:K,11,0)))","v":""},"Esconde"]
[{"$f":"'Simulador de pontos para progr.'!A78","v":"D2.5.10"},{"$f":"VLOOKUP(A:A,'Simulador de pontos para progr.'!A:B,2,0)","v":"Mostra coletiva de obra fotográfica ou de artes visuais;"},null,{"$f":"IF(VLOOKUP(A:A,'Simulador de pontos para progr.'!A:J,10,0)=0,\"\",VLOOKUP(A:A,'Simulador de pontos para progr.'!A:J,10,0))","v":""},{"$f":"IF(D:D=\"Parcialmente Deferido\",\"Pontuação aproveitada (sem considerar regra de redimensionamento): \"&VLOOKUP(A:A,'Simulador de pontos para progr.'!A:H,6,0)&\" pontos. \"&IF(VLOOKUP(A:A,'Simulador de pontos para progr.'!A:K,11,0)=0,\"\",VLOOKUP(A:A,'Simulador de pontos para progr.'!A:K,11,0)),IF(VLOOKUP(A:A,'Simulador de pontos para progr.'!A:K,11,0)=0,\"\",VLOOKUP(A:A,'Simulador de pontos para progr.'!A:K,11,0)))","v":""},"Esconde"]
[{"$f":"'Simulador de pontos para progr.'!A79","v":"D2.5.11"},{"$f":"VLOOKUP(A:A,'Simulador de pontos para progr.'!A:B,2,0)","v":"Manutenção de obra artística/cultural"},null,{"$f":"IF(VLOOKUP(A:A,'Simulador de pontos para progr.'!A:J,10,0)=0,\"\",VLOOKUP(A:A,'Simulador de pontos para progr.'!A:J,10,0))","v":""},{"$f":"IF(D:D=\"Parcialmente Deferido\",\"Pontuação aproveitada (sem considerar regra de redimensionamento): \"&VLOOKUP(A:A,'Simulador de pontos para progr.'!A:H,6,0)&\" pontos. \"&IF(VLOOKUP(A:A,'Simulador de pontos para progr.'!A:K,11,0)=0,\"\",VLOOKUP(A:A,'Simulador de pontos para progr.'!A:K,11,0)),IF(VLOOKUP(A:A,'Simulador de pontos para progr.'!A:K,11,0)=0,\"\",VLOOKUP(A:A,'Simulador de pontos para progr.'!A:K,11,0)))","v":""},"Esconde"]
[{"$f":"'Simulador de pontos para progr.'!A80","v":"D2.5.12"},{"$f":"VLOOKUP(A:A,'Simulador de pontos para progr.'!A:B,2,0)","v":"Arranjo musical (canto, coral, orquestral)"},null,{"$f":"IF(VLOOKUP(A:A,'Simulador de pontos para progr.'!A:J,10,0)=0,\"\",VLOOKUP(A:A,'Simulador de pontos para progr.'!A:J,10,0))","v":""},{"$f":"IF(D:D=\"Parcialmente Deferido\",\"Pontuação aproveitada (sem considerar regra de redimensionamento): \"&VLOOKUP(A:A,'Simulador de pontos para progr.'!A:H,6,0)&\" pontos. \"&IF(VLOOKUP(A:A,'Simulador de pontos para progr.'!A:K,11,0)=0,\"\",VLOOKUP(A:A,'Simulador de pontos para progr.'!A:K,11,0)),IF(VLOOKUP(A:A,'Simulador de pontos para progr.'!A:K,11,0)=0,\"\",VLOOKUP(A:A,'Simulador de pontos para progr.'!A:K,11,0)))","v":""},"Esconde"]
[{"$f":"'Simulador de pontos para progr.'!A81","v":"D2.5.13"},{"$f":"VLOOKUP(A:A,'Simulador de pontos para progr.'!A:B,2,0)","v":"Composição musical (canto, coral, orquestral)"},null,{"$f":"IF(VLOOKUP(A:A,'Simulador de pontos para progr.'!A:J,10,0)=0,\"\",VLOOKUP(A:A,'Simulador de pontos para progr.'!A:J,10,0))","v":""},{"$f":"IF(D:D=\"Parcialmente Deferido\",\"Pontuação aproveitada (sem considerar regra de redimensionamento): \"&VLOOKUP(A:A,'Simulador de pontos para progr.'!A:H,6,0)&\" pontos. \"&IF(VLOOKUP(A:A,'Simulador de pontos para progr.'!A:K,11,0)=0,\"\",VLOOKUP(A:A,'Simulador de pontos para progr.'!A:K,11,0)),IF(VLOOKUP(A:A,'Simulador de pontos para progr.'!A:K,11,0)=0,\"\",VLOOKUP(A:A,'Simulador de pontos para progr.'!A:K,11,0)))","v":""},"Esconde"]
[{"$f":"'Simulador de pontos para progr.'!A82","v":"D2.5.14"},{"$f":"VLOOKUP(A:A,'Simulador de pontos para progr.'!A:B,2,0)","v":"Criação de material educativo vinculado as artes"},null,{"$f":"IF(VLOOKUP(A:A,'Simulador de pontos para progr.'!A:J,10,0)=0,\"\",VLOOKUP(A:A,'Simulador de pontos para progr.'!A:J,10,0))","v":""},{"$f":"IF(D:D=\"Parcialmente Deferido\",\"Pontuação aproveitada (sem considerar regra de redimensionamento): \"&VLOOKUP(A:A,'Simulador de pontos para progr.'!A:H,6,0)&\" pontos. \"&IF(VLOOKUP(A:A,'Simulador de pontos para progr.'!A:K,11,0)=0,\"\",VLOOKUP(A:A,'Simulador de pontos para progr.'!A:K,11,0)),IF(VLOOKUP(A:A,'Simulador de pontos para progr.'!A:K,11,0)=0,\"\",VLOOKUP(A:A,'Simulador de pontos para progr.'!A:K,11,0)))","v":""},"Esconde"]
[{"$f":"'Simulador de pontos para progr.'!A85","v":"D2.6.1"},{"$f":"VLOOKUP(A:A,'Simulador de pontos para progr.'!A:B,2,0)","v":"Premiações-(Destaques) Regional"},null,{"$f":"IF(VLOOKUP(A:A,'Simulador de pontos para progr.'!A:J,10,0)=0,\"\",VLOOKUP(A:A,'Simulador de pontos para progr.'!A:J,10,0))","v":""},{"$f":"IF(D:D=\"Parcialmente Deferido\",\"Pontuação aproveitada (sem considerar regra de redimensionamento): \"&VLOOKUP(A:A,'Simulador de pontos para progr.'!A:H,6,0)&\" pontos. \"&IF(VLOOKUP(A:A,'Simulador de pontos para progr.'!A:K,11,0)=0,\"\",VLOOKUP(A:A,'Simulador de pontos para progr.'!A:K,11,0)),IF(VLOOKUP(A:A,'Simulador de pontos para progr.'!A:K,11,0)=0,\"\",VLOOKUP(A:A,'Simulador de pontos para progr.'!A:K,11,0)))","v":""},"Esconde"]
[{"$f":"'Simulador de pontos para progr.'!A86","v":"D2.6.2"},{"$f":"VLOOKUP(A:A,'Simulador de pontos para progr.'!A:B,2,0)","v":"Premiações-(Destaques) Nacional"},null,{"$f":"IF(VLOOKUP(A:A,'Simulador de pontos para progr.'!A:J,10,0)=0,\"\",VLOOKUP(A:A,'Simulador de pontos para progr.'!A:J,10,0))","v":""},{"$f":"IF(D:D=\"Parcialmente Deferido\",\"Pontuação aproveitada (sem considerar regra de redimensionamento): \"&VLOOKUP(A:A,'Simulador de pontos para progr.'!A:H,6,0)&\" pontos. \"&IF(VLOOKUP(A:A,'Simulador de pontos para progr.'!A:K,11,0)=0,\"\",VLOOKUP(A:A,'Simulador de pontos para progr.'!A:K,11,0)),IF(VLOOKUP(A:A,'Simulador de pontos para progr.'!A:K,11,0)=0,\"\",VLOOKUP(A:A,'Simulador de pontos para progr.'!A:K,11,0)))","v":""},"Esconde"]
[{"$f":"'Simulador de pontos para progr.'!A87","v":"D2.6.3"},{"$f":"VLOOKUP(A:A,'Simulador de pontos para progr.'!A:B,2,0)","v":"Premiações-(Destaques) Internacional"},null,{"$f":"IF(VLOOKUP(A:A,'Simulador de pontos para progr.'!A:J,10,0)=0,\"\",VLOOKUP(A:A,'Simulador de pontos para progr.'!A:J,10,0))","v":""},{"$f":"IF(D:D=\"Parcialmente Deferido\",\"Pontuação aproveitada (sem considerar regra de redimensionamento): \"&VLOOKUP(A:A,'Simulador de pontos para progr.'!A:H,6,0)&\" pontos. \"&IF(VLOOKUP(A:A,'Simulador de pontos para progr.'!A:K,11,0)=0,\"\",VLOOKUP(A:A,'Simulador de pontos para progr.'!A:K,11,0)),IF(VLOOKUP(A:A,'Simulador de pontos para progr.'!A:K,11,0)=0,\"\",VLOOKUP(A:A,'Simulador de pontos para progr.'!A:K,11,0)))","v":""},"Esconde"]
[{"$f":"'Simulador de pontos para progr.'!A93","v":"D3.1.1"},{"$f":"VLOOKUP(A:A,'Simulador de pontos para progr.'!A:B,2,0)","v":"Orientação de trabalho de conclusão de curso de graduação"},null,{"$f":"IF(VLOOKUP(A:A,'Simulador de pontos para progr.'!A:J,10,0)=0,\"\",VLOOKUP(A:A,'Simulador de pontos para progr.'!A:J,10,0))","v":""},{"$f":"IF(D:D=\"Parcialmente Deferido\",\"Pontuação aproveitada (sem considerar regra de redimensionamento): \"&VLOOKUP(A:A,'Simulador de pontos para progr.'!A:H,6,0)&\" pontos. \"&IF(VLOOKUP(A:A,'Simulador de pontos para progr.'!A:K,11,0)=0,\"\",VLOOKUP(A:A,'Simulador de pontos para progr.'!A:K,11,0)),IF(VLOOKUP(A:A,'Simulador de pontos para progr.'!A:K,11,0)=0,\"\",VLOOKUP(A:A,'Simulador de pontos para progr.'!A:K,11,0)))","v":""},"Esconde"]
[{"$f":"'Simulador de pontos para progr.'!A94","v":"D3.1.2"},{"$f":"VLOOKUP(A:A,'Simulador de pontos para progr.'!A:B,2,0)","v":"Orientação de trabalho de conclusão de curso de especialização ou MBA."},null,{"$f":"IF(VLOOKUP(A:A,'Simulador de pontos para progr.'!A:J,10,0)=0,\"\",VLOOKUP(A:A,'Simulador de pontos para progr.'!A:J,10,0))","v":""},{"$f":"IF(D:D=\"Parcialmente Deferido\",\"Pontuação aproveitada (sem considerar regra de redimensionamento): \"&VLOOKUP(A:A,'Simulador de pontos para progr.'!A:H,6,0)&\" pontos. \"&IF(VLOOKUP(A:A,'Simulador de pontos para progr.'!A:K,11,0)=0,\"\",VLOOKUP(A:A,'Simulador de pontos para progr.'!A:K,11,0)),IF(VLOOKUP(A:A,'Simulador de pontos para progr.'!A:K,11,0)=0,\"\",VLOOKUP(A:A,'Simulador de pontos para progr.'!A:K,11,0)))","v":""},"Esconde"]
[{"$f":"'Simulador de pontos para progr.'!A95","v":"D3.1.3"},{"$f":"VLOOKUP(A:A,'Simulador de pontos para progr.'!A:B,2,0)","v":"Orientação de acadêmicos de Iniciação Científica e Extensão"},null,{"$f":"IF(VLOOKUP(A:A,'Simulador de pontos para progr.'!A:J,10,0)=0,\"\",VLOOKUP(A:A,'Simulador de pontos para progr.'!A:J,10,0))","v":""},{"$f":"IF(D:D=\"Parcialmente Deferido\",\"Pontuação aproveitada (sem considerar regra de redimensionamento): \"&VLOOKUP(A:A,'Simulador de pontos para progr.'!A:H,6,0)&\" pontos. \"&IF(VLOOKUP(A:A,'Simulador de pontos para progr.'!A:K,11,0)=0,\"\",VLOOKUP(A:A,'Simulador de pontos para progr.'!A:K,11,0)),IF(VLOOKUP(A:A,'Simulador de pontos para progr.'!A:K,11,0)=0,\"\",VLOOKUP(A:A,'Simulador de pontos para progr.'!A:K,11,0)))","v":""},"Esconde"]
[{"$f":"'Simulador de pontos para progr.'!A96","v":"D3.1.4"},{"$f":"VLOOKUP(A:A,'Simulador de pontos para progr.'!A:B,2,0)","v":"Orientação de Dissertação de Mestrado"},null,{"$f":"IF(VLOOKUP(A:A,'Simulador de pontos para progr.'!A:J,10,0)=0,\"\",VLOOKUP(A:A,'Simulador de pontos para progr.'!A:J,10,0))","v":""},{"$f":"IF(D:D=\"Parcialmente Deferido\",\"Pontuação aproveitada (sem considerar regra de redimensionamento): \"&VLOOKUP(A:A,'Simulador de pontos para progr.'!A:H,6,0)&\" pontos. \"&IF(VLOOKUP(A:A,'Simulador de pontos para progr.'!A:K,11,0)=0,\"\",VLOOKUP(A:A,'Simulador de pontos para progr.'!A:K,11,0)),IF(VLOOKUP(A:A,'Simulador de pontos para progr.'!A:K,11,0)=0,\"\",VLOOKUP(A:A,'Simulador de pontos para progr.'!A:K,11,0)))","v":""},"Esconde"]
[{"$f":"'Simulador de pontos para progr.'!A97","v":"D3.1.5"},{"$f":"VLOOKUP(A:A,'Simulador de pontos para progr.'!A:B,2,0)","v":"Orientação de Tese de Doutorado"},null,{"$f":"IF(VLOOKUP(A:A,'Simulador de pontos para progr.'!A:J,10,0)=0,\"\",VLOOKUP(A:A,'Simulador de pontos para progr.'!A:J,10,0))","v":""},{"$f":"IF(D:D=\"Parcialmente Deferido\",\"Pontuação aproveitada (sem considerar regra de redimensionamento): \"&VLOOKUP(A:A,'Simulador de pontos para progr.'!A:H,6,0)&\" pontos. \"&IF(VLOOKUP(A:A,'Simulador de pontos para progr.'!A:K,11,0)=0,\"\",VLOOKUP(A:A,'Simulador de pontos para progr.'!A:K,11,0)),IF(VLOOKUP(A:A,'Simulador de pontos para progr.'!A:K,11,0)=0,\"\",VLOOKUP(A:A,'Simulador de pontos para progr.'!A:K,11,0)))","v":""},"Esconde"]
[{"$f":"'Simulador de pontos para progr.'!A100","v":"D3.2.1"},{"$f":"VLOOKUP(A:A,'Simulador de pontos para progr.'!A:B,2,0)","v":"Bancas da graduação"},null,{"$f":"IF(VLOOKUP(A:A,'Simulador de pontos para progr.'!A:J,10,0)=0,\"\",VLOOKUP(A:A,'Simulador de pontos para progr.'!A:J,10,0))","v":""},{"$f":"IF(D:D=\"Parcialmente Deferido\",\"Pontuação aproveitada (sem considerar regra de redimensionamento): \"&VLOOKUP(A:A,'Simulador de pontos para progr.'!A:H,6,0)&\" pontos. \"&IF(VLOOKUP(A:A,'Simulador de pontos para progr.'!A:K,11,0)=0,\"\",VLOOKUP(A:A,'Simulador de pontos para progr.'!A:K,11,0)),IF(VLOOKUP(A:A,'Simulador de pontos para progr.'!A:K,11,0)=0,\"\",VLOOKUP(A:A,'Simulador de pontos para progr.'!A:K,11,0)))","v":""},{"$f":"IF(OR(D:D=\"Indeferido\",D:D=\"Parcialmente Deferido\",A:A=\"Não houve itens indeferidos ou parcialmente indeferidos.\"),\"Mostra\",\"Esconde\")","v":"Esconde"}]
[{"$f":"'Simulador de pontos para progr.'!A101","v":"D3.2.2"},{"$f":"VLOOKUP(A:A,'Simulador de pontos para progr.'!A:B,2,0)","v":"Bancas de especialização ou de MBA"},null,{"$f":"IF(VLOOKUP(A:A,'Simulador de pontos para progr.'!A:J,10,0)=0,\"\",VLOOKUP(A:A,'Simulador de pontos para progr.'!A:J,10,0))","v":""},{"$f":"IF(D:D=\"Parcialmente Deferido\",\"Pontuação aproveitada (sem considerar regra de redimensionamento): \"&VLOOKUP(A:A,'Simulador de pontos para progr.'!A:H,6,0)&\" pontos. \"&IF(VLOOKUP(A:A,'Simulador de pontos para progr.'!A:K,11,0)=0,\"\",VLOOKUP(A:A,'Simulador de pontos para progr.'!A:K,11,0)),IF(VLOOKUP(A:A,'Simulador de pontos para progr.'!A:K,11,0)=0,\"\",VLOOKUP(A:A,'Simulador de pontos para progr.'!A:K,11,0)))","v":""},"Esconde"]
[{"$f":"'Simulador de pontos para progr.'!A102","v":"D3.2.3"},{"$f":"VLOOKUP(A:A,'Simulador de pontos para progr.'!A:B,2,0)","v":"Bancas de mestrado ou de doutorado"},null,{"$f":"IF(VLOOKUP(A:A,'Simulador de pontos para progr.'!A:J,10,0)=0,\"\",VLOOKUP(A:A,'Simulador de pontos para progr.'!A:J,10,0))","v":""},{"$f":"IF(D:D=\"Parcialmente Deferido\",\"Pontuação aproveitada (sem considerar regra de redimensionamento): \"&VLOOKUP(A:A,'Simulador de pontos para progr.'!A:H,6,0)&\" pontos. \"&IF(VLOOKUP(A:A,'Simulador de pontos para progr.'!A:K,11,0)=0,\"\",VLOOKUP(A:A,'Simulador de pontos para progr.'!A:K,11,0)),IF(VLOOKUP(A:A,'Simulador de pontos para progr.'!A:K,11,0)=0,\"\",VLOOKUP(A:A,'Simulador de pontos para progr.'!A:K,11,0)))","v":""},"Esconde"]
[{"$f":"'Simulador de pontos para progr.'!A103","v":"D3.2.4"},{"$f":"VLOOKUP(A:A,'Simulador de pontos para progr.'!A:B,2,0)","v":"Bancas de iniciação cientifica ou trabalhos de extensão."},null,{"$f":"IF(VLOOKUP(A:A,'Simulador de pontos para progr.'!A:J,10,0)=0,\"\",VLOOKUP(A:A,'Simulador de pontos para progr.'!A:J,10,0))","v":""},{"$f":"IF(D:D=\"Parcialmente Deferido\",\"Pontuação aproveitada (sem considerar regra de redimensionamento): \"&VLOOKUP(A:A,'Simulador de pontos para progr.'!A:H,6,0)&\" pontos. \"&IF(VLOOKUP(A:A,'Simulador de pontos para progr.'!A:K,11,0)=0,\"\",VLOOKUP(A:A,'Simulador de pontos para progr.'!A:K,11,0)),IF(VLOOKUP(A:A,'Simulador de pontos para progr.'!A:K,11,0)=0,\"\",VLOOKUP(A:A,'Simulador de pontos para progr.'!A:K,11,0)))","v":""},"Esconde"]
[{"$f":"'Simulador de pontos para progr.'!A104","v":"D3.2.5"},{"$f":"VLOOKUP(A:A,'Simulador de pontos para progr.'!A:B,2,0)","v":"Comissão de avaliação de salão de extensão/feira de iniciação cientifica/comissão avaliadora de prêmio"},null,{"$f":"IF(VLOOKUP(A:A,'Simulador de pontos para progr.'!A:J,10,0)=0,\"\",VLOOKUP(A:A,'Simulador de pontos para progr.'!A:J,10,0))","v":""},{"$f":"IF(D:D=\"Parcialmente Deferido\",\"Pontuação aproveitada (sem considerar regra de redimensionamento): \"&VLOOKUP(A:A,'Simulador de pontos para progr.'!A:H,6,0)&\" pontos. \"&IF(VLOOKUP(A:A,'Simulador de pontos para progr.'!A:K,11,0)=0,\"\",VLOOKUP(A:A,'Simulador de pontos para progr.'!A:K,11,0)),IF(VLOOKUP(A:A,'Simulador de pontos para progr.'!A:K,11,0)=0,\"\",VLOOKUP(A:A,'Simulador de pontos para progr.'!A:K,11,0)))","v":""},"Esconde"]
[{"$f":"'Simulador de pontos para progr.'!A107","v":"D3.3.1"},{"$f":"VLOOKUP(A:A,'Simulador de pontos para progr.'!A:B,2,0)","v":"Organização de viagem de intercâmbio:Estudos, Tecnicas e Culturais."},null,{"$f":"IF(VLOOKUP(A:A,'Simulador de pontos para progr.'!A:J,10,0)=0,\"\",VLOOKUP(A:A,'Simulador de pontos para progr.'!A:J,10,0))","v":""},{"$f":"IF(D:D=\"Parcialmente Deferido\",\"Pontuação aproveitada (sem considerar regra de redimensionamento): \"&VLOOKUP(A:A,'Simulador de pontos para progr.'!A:H,6,0)&\" pontos. \"&IF(VLOOKUP(A:A,'Simulador de pontos para progr.'!A:K,11,0)=0,\"\",VLOOKUP(A:A,'Simulador de pontos para progr.'!A:K,11,0)),IF(VLOOKUP(A:A,'Simulador de pontos para progr.'!A:K,11,0)=0,\"\",VLOOKUP(A:A,'Simulador de pontos para progr.'!A:K,11,0)))","v":""},"Esconde"]
[{"$f":"'Simulador de pontos para progr.'!A108","v":"D3.3.2"},{"$f":"VLOOKUP(A:A,'Simulador de pontos para progr.'!A:B,2,0)","v":"Execução de projetos de pesquisa/Extensão/Ensino realizados com IES parceiras."},null,{"$f":"IF(VLOOKUP(A:A,'Simulador de pontos para progr.'!A:J,10,0)=0,\"\",VLOOKUP(A:A,'Simulador de pontos para progr.'!A:J,10,0))","v":""},{"$f":"IF(D:D=\"Parcialmente Deferido\",\"Pontuação aproveitada (sem considerar regra de redimensionamento): \"&VLOOKUP(A:A,'Simulador de pontos para progr.'!A:H,6,0)&\" pontos. \"&IF(VLOOKUP(A:A,'Simulador de pontos para progr.'!A:K,11,0)=0,\"\",VLOOKUP(A:A,'Simulador de pontos para progr.'!A:K,11,0)),IF(VLOOKUP(A:A,'Simulador de pontos para progr.'!A:K,11,0)=0,\"\",VLOOKUP(A:A,'Simulador de pontos para progr.'!A:K,11,0)))","v":""},"Esconde"]
[{"$f":"'Simulador de pontos para progr.'!A109","v":"D3.3.3"},{"$f":"VLOOKUP(A:A,'Simulador de pontos para progr.'!A:B,2,0)","v":"Participação em intercambio docente nos cursos de graduação"},null,{"$f":"IF(VLOOKUP(A:A,'Simulador de pontos para progr.'!A:J,10,0)=0,\"\",VLOOKUP(A:A,'Simulador de pontos para progr.'!A:J,10,0))","v":""},{"$f":"IF(D:D=\"Parcialmente Deferido\",\"Pontuação aproveitada (sem considerar regra de redimensionamento): \"&VLOOKUP(A:A,'Simulador de pontos para progr.'!A:H,6,0)&\" pontos. \"&IF(VLOOKUP(A:A,'Simulador de pontos para progr.'!A:K,11,0)=0,\"\",VLOOKUP(A:A,'Simulador de pontos para progr.'!A:K,11,0)),IF(VLOOKUP(A:A,'Simulador de pontos para progr.'!A:K,11,0)=0,\"\",VLOOKUP(A:A,'Simulador de pontos para progr.'!A:K,11,0)))","v":""},"Esconde"]
[{"$f":"'Simulador de pontos para progr.'!A110","v":"D3.3.4"},{"$f":"VLOOKUP(A:A,'Simulador de pontos para progr.'!A:B,2,0)","v":"Participação em intercambio docente nos cursos de Pós graduação"},null,{"$f":"IF(VLOOKUP(A:A,'Simulador de pontos para progr.'!A:J,10,0)=0,\"\",VLOOKUP(A:A,'Simulador de pontos para progr.'!A:J,10,0))","v":""},{"$f":"IF(D:D=\"Parcialmente Deferido\",\"Pontuação aproveitada (sem considerar regra de redimensionamento): \"&VLOOKUP(A:A,'Simulador de pontos para progr.'!A:H,6,0)&\" pontos. \"&IF(VLOOKUP(A:A,'Simulador de pontos para progr.'!A:K,11,0)=0,\"\",VLOOKUP(A:A,'Simulador de pontos para progr.'!A:K,11,0)),IF(VLOOKUP(A:A,'Simulador de pontos para progr.'!A:K,11,0)=0,\"\",VLOOKUP(A:A,'Simulador de pontos para progr.'!A:K,11,0)))","v":""},"Esconde"]
[{"$f":"'Simulador de pontos para progr.'!A111","v":"D3.3.5"},{"$f":"VLOOKUP(A:A,'Simulador de pontos para progr.'!A:B,2,0)","v":"Intercambio de discentes (orientandos)nos cursos de Pós graduação"},null,{"$f":"IF(VLOOKUP(A:A,'Simulador de pontos para progr.'!A:J,10,0)=0,\"\",VLOOKUP(A:A,'Simulador de pontos para progr.'!A:J,10,0))","v":""},{"$f":"IF(D:D=\"Parcialmente Deferido\",\"Pontuação aproveitada (sem considerar regra de redimensionamento): \"&VLOOKUP(A:A,'Simulador de pontos para progr.'!A:H,6,0)&\" pontos. \"&IF(VLOOKUP(A:A,'Simulador de pontos para progr.'!A:K,11,0)=0,\"\",VLOOKUP(A:A,'Simulador de pontos para progr.'!A:K,11,0)),IF(VLOOKUP(A:A,'Simulador de pontos para progr.'!A:K,11,0)=0,\"\",VLOOKUP(A:A,'Simulador de pontos para progr.'!A:K,11,0)))","v":""},"Esconde"]
[{"$f":"'Simulador de pontos para progr.'!A112","v":"D3.3.6"},{"$f":"VLOOKUP(A:A,'Simulador de pontos para progr.'!A:B,2,0)","v":"Orientação de alunos estrangeiros (Pós graduação)"},null,{"$f":"IF(VLOOKUP(A:A,'Simulador de pontos para progr.'!A:J,10,0)=0,\"\",VLOOKUP(A:A,'Simulador de pontos para progr.'!A:J,10,0))","v":""},{"$f":"IF(D:D=\"Parcialmente Deferido\",\"Pontuação aproveitada (sem considerar regra de redimensionamento): \"&VLOOKUP(A:A,'Simulador de pontos para progr.'!A:H,6,0)&\" pontos. \"&IF(VLOOKUP(A:A,'Simulador de pontos para progr.'!A:K,11,0)=0,\"\",VLOOKUP(A:A,'Simulador de pontos para progr.'!A:K,11,0)),IF(VLOOKUP(A:A,'Simulador de pontos para progr.'!A:K,11,0)=0,\"\",VLOOKUP(A:A,'Simulador de pontos para progr.'!A:K,11,0)))","v":""},"Esconde"]
[{"$f":"'Simulador de pontos para progr.'!A113","v":"D3.3.7"},{"$f":"VLOOKUP(A:A,'Simulador de pontos para progr.'!A:B,2,0)","v":"Ensino de discipinas em lingua estrangeira "},null,{"$f":"IF(VLOOKUP(A:A,'Simulador de pontos para progr.'!A:J,10,0)=0,\"\",VLOOKUP(A:A,'Simulador de pontos para progr.'!A:J,10,0))","v":""},{"$f":"IF(D:D=\"Parcialmente Deferido\",\"Pontuação aproveitada (sem considerar regra de redimensionamento): \"&VLOOKUP(A:A,'Simulador de pontos para progr.'!A:H,6,0)&\" pontos. \"&IF(VLOOKUP(A:A,'Simulador de pontos para progr.'!A:K,11,0)=0,\"\",VLOOKUP(A:A,'Simulador de pontos para progr.'!A:K,11,0)),IF(VLOOKUP(A:A,'Simulador de pontos para progr.'!A:K,11,0)=0,\"\",VLOOKUP(A:A,'Simulador de pontos para progr.'!A:K,11,0)))","v":""},"Esconde"]
[{"$f":"'Simulador de pontos para progr.'!A114","v":"D3.3.8"},{"$f":"VLOOKUP(A:A,'Simulador de pontos para progr.'!A:B,2,0)","v":"Tutoria de alunos estrangeiros"},null,{"$f":"IF(VLOOKUP(A:A,'Simulador de pontos para progr.'!A:J,10,0)=0,\"\",VLOOKUP(A:A,'Simulador de pontos para progr.'!A:J,10,0))","v":""},{"$f":"IF(D:D=\"Parcialmente Deferido\",\"Pontuação aproveitada (sem considerar regra de redimensionamento): \"&VLOOKUP(A:A,'Simulador de pontos para progr.'!A:H,6,0)&\" pontos. \"&IF(VLOOKUP(A:A,'Simulador de pontos para progr.'!A:K,11,0)=0,\"\",VLOOKUP(A:A,'Simulador de pontos para progr.'!A:K,11,0)),IF(VLOOKUP(A:A,'Simulador de pontos para progr.'!A:K,11,0)=0,\"\",VLOOKUP(A:A,'Simulador de pontos para progr.'!A:K,11,0)))","v":""},"Esconde"]
[{"$f":"'Simulador de pontos para progr.'!A120","v":"D4.1.1"},{"$f":"VLOOKUP(A:A,'Simulador de pontos para progr.'!A:B,2,0)","v":"Organização de curso de extensão"},null,{"$f":"IF(VLOOKUP(A:A,'Simulador de pontos para progr.'!A:J,10,0)=0,\"\",VLOOKUP(A:A,'Simulador de pontos para progr.'!A:J,10,0))","v":""},{"$f":"IF(D:D=\"Parcialmente Deferido\",\"Pontuação aproveitada (sem considerar regra de redimensionamento): \"&VLOOKUP(A:A,'Simulador de pontos para progr.'!A:H,6,0)&\" pontos. \"&IF(VLOOKUP(A:A,'Simulador de pontos para progr.'!A:K,11,0)=0,\"\",VLOOKUP(A:A,'Simulador de pontos para progr.'!A:K,11,0)),IF(VLOOKUP(A:A,'Simulador de pontos para progr.'!A:K,11,0)=0,\"\",VLOOKUP(A:A,'Simulador de pontos para progr.'!A:K,11,0)))","v":""},"Esconde"]
[{"$f":"'Simulador de pontos para progr.'!A121","v":"D4.1.2"},{"$f":"VLOOKUP(A:A,'Simulador de pontos para progr.'!A:B,2,0)","v":"Comissão/grupo para novo curso de graduação"},null,{"$f":"IF(VLOOKUP(A:A,'Simulador de pontos para progr.'!A:J,10,0)=0,\"\",VLOOKUP(A:A,'Simulador de pontos para progr.'!A:J,10,0))","v":""},{"$f":"IF(D:D=\"Parcialmente Deferido\",\"Pontuação aproveitada (sem considerar regra de redimensionamento): \"&VLOOKUP(A:A,'Simulador de pontos para progr.'!A:H,6,0)&\" pontos. \"&IF(VLOOKUP(A:A,'Simulador de pontos para progr.'!A:K,11,0)=0,\"\",VLOOKUP(A:A,'Simulador de pontos para progr.'!A:K,11,0)),IF(VLOOKUP(A:A,'Simulador de pontos para progr.'!A:K,11,0)=0,\"\",VLOOKUP(A:A,'Simulador de pontos para progr.'!A:K,11,0)))","v":""},"Esconde"]
[{"$f":"'Simulador de pontos para progr.'!A122","v":"D4.1.3"},{"$f":"VLOOKUP(A:A,'Simulador de pontos para progr.'!A:B,2,0)","v":"Comissão/grupo para novo curso de pós-graduação lato sensu"},null,{"$f":"IF(VLOOKUP(A:A,'Simulador de pontos para progr.'!A:J,10,0)=0,\"\",VLOOKUP(A:A,'Simulador de pontos para progr.'!A:J,10,0))","v":""},{"$f":"IF(D:D=\"Parcialmente Deferido\",\"Pontuação aproveitada (sem considerar regra de redimensionamento): \"&VLOOKUP(A:A,'Simulador de pontos para progr.'!A:H,6,0)&\" pontos. \"&IF(VLOOKUP(A:A,'Simulador de pontos para progr.'!A:K,11,0)=0,\"\",VLOOKUP(A:A,'Simulador de pontos para progr.'!A:K,11,0)),IF(VLOOKUP(A:A,'Simulador de pontos para progr.'!A:K,11,0)=0,\"\",VLOOKUP(A:A,'Simulador de pontos para progr.'!A:K,11,0)))","v":""},"Esconde"]
[{"$f":"'Simulador de pontos para progr.'!A123","v":"D4.1.4"},{"$f":"VLOOKUP(A:A,'Simulador de pontos para progr.'!A:B,2,0)","v":"Comissão/grupo para novo curso de pós-graduação stricto sensu"},null,{"$f":"IF(VLOOKUP(A:A,'Simulador de pontos para progr.'!A:J,10,0)=0,\"\",VLOOKUP(A:A,'Simulador de pontos para progr.'!A:J,10,0))","v":""},{"$f":"IF(D:D=\"Parcialmente Deferido\",\"Pontuação aproveitada (sem considerar regra de redimensionamento): \"&VLOOKUP(A:A,'Simulador de pontos para progr.'!A:H,6,0)&\" pontos. \"&IF(VLOOKUP(A:A,'Simulador de pontos para progr.'!A:K,11,0)=0,\"\",VLOOKUP(A:A,'Simulador de pontos para progr.'!A:K,11,0)),IF(VLOOKUP(A:A,'Simulador de pontos para progr.'!A:K,11,0)=0,\"\",VLOOKUP(A:A,'Simulador de pontos para progr.'!A:K,11,0)))","v":""},"Esconde"]
[{"$f":"'Simulador de pontos para progr.'!A124","v":"D4.1.5"},{"$f":"VLOOKUP(A:A,'Simulador de pontos para progr.'!A:B,2,0)","v":"Novos serviços"},null,{"$f":"IF(VLOOKUP(A:A,'Simulador de pontos para progr.'!A:J,10,0)=0,\"\",VLOOKUP(A:A,'Simulador de pontos para progr.'!A:J,10,0))","v":""},{"$f":"IF(D:D=\"Parcialmente Deferido\",\"Pontuação aproveitada (sem considerar regra de redimensionamento): \"&VLOOKUP(A:A,'Simulador de pontos para progr.'!A:H,6,0)&\" pontos. \"&IF(VLOOKUP(A:A,'Simulador de pontos para progr.'!A:K,11,0)=0,\"\",VLOOKUP(A:A,'Simulador de pontos para progr.'!A:K,11,0)),IF(VLOOKUP(A:A,'Simulador de pontos para progr.'!A:K,11,0)=0,\"\",VLOOKUP(A:A,'Simulador de pontos para progr.'!A:K,11,0)))","v":""},"Esconde"]
[{"$f":"'Simulador de pontos para progr.'!A129","v":"D5.1.1"},{"$f":"VLOOKUP(A:A,'Simulador de pontos para progr.'!A:B,2,0)","v":"Reitor"},null,{"$f":"IF(VLOOKUP(A:A,'Simulador de pontos para progr.'!A:J,10,0)=0,\"\",VLOOKUP(A:A,'Simulador de pontos para progr.'!A:J,10,0))","v":""},{"$f":"IF(D:D=\"Parcialmente Deferido\",\"Pontuação aproveitada (sem considerar regra de redimensionamento): \"&VLOOKUP(A:A,'Simulador de pontos para progr.'!A:H,6,0)&\" pontos. \"&IF(VLOOKUP(A:A,'Simulador de pontos para progr.'!A:K,11,0)=0,\"\",VLOOKUP(A:A,'Simulador de pontos para progr.'!A:K,11,0)),IF(VLOOKUP(A:A,'Simulador de pontos para progr.'!A:K,11,0)=0,\"\",VLOOKUP(A:A,'Simulador de pontos para progr.'!A:K,11,0)))","v":""},"Esconde"]
[{"$f":"'Simulador de pontos para progr.'!A130","v":"D5.1.2"},{"$f":"VLOOKUP(A:A,'Simulador de pontos para progr.'!A:B,2,0)","v":"Pró-Reitor"},null,{"$f":"IF(VLOOKUP(A:A,'Simulador de pontos para progr.'!A:J,10,0)=0,\"\",VLOOKUP(A:A,'Simulador de pontos para progr.'!A:J,10,0))","v":""},{"$f":"IF(D:D=\"Parcialmente Deferido\",\"Pontuação aproveitada (sem considerar regra de redimensionamento): \"&VLOOKUP(A:A,'Simulador de pontos para progr.'!A:H,6,0)&\" pontos. \"&IF(VLOOKUP(A:A,'Simulador de pontos para progr.'!A:K,11,0)=0,\"\",VLOOKUP(A:A,'Simulador de pontos para progr.'!A:K,11,0)),IF(VLOOKUP(A:A,'Simulador de pontos para progr.'!A:K,11,0)=0,\"\",VLOOKUP(A:A,'Simulador de pontos para progr.'!A:K,11,0)))","v":""},"Esconde"]
[{"$f":"'Simulador de pontos para progr.'!A131","v":"D5.1.3"},{"$f":"VLOOKUP(A:A,'Simulador de pontos para progr.'!A:B,2,0)","v":"Diretor de Instituto Acadêmico"},null,{"$f":"IF(VLOOKUP(A:A,'Simulador de pontos para progr.'!A:J,10,0)=0,\"\",VLOOKUP(A:A,'Simulador de pontos para progr.'!A:J,10,0))","v":""},{"$f":"IF(D:D=\"Parcialmente Deferido\",\"Pontuação aproveitada (sem considerar regra de redimensionamento): \"&VLOOKUP(A:A,'Simulador de pontos para progr.'!A:H,6,0)&\" pontos. \"&IF(VLOOKUP(A:A,'Simulador de pontos para progr.'!A:K,11,0)=0,\"\",VLOOKUP(A:A,'Simulador de pontos para progr.'!A:K,11,0)),IF(VLOOKUP(A:A,'Simulador de pontos para progr.'!A:K,11,0)=0,\"\",VLOOKUP(A:A,'Simulador de pontos para progr.'!A:K,11,0)))","v":""},"Esconde"]
[{"$f":"'Simulador de pontos para progr.'!A132","v":"D5.1.4"},{"$f":"VLOOKUP(A:A,'Simulador de pontos para progr.'!A:B,2,0)","v":"Coordenação de curso de graduação"},null,{"$f":"IF(VLOOKUP(A:A,'Simulador de pontos para progr.'!A:J,10,0)=0,\"\",VLOOKUP(A:A,'Simulador de pontos para progr.'!A:J,10,0))","v":""},{"$f":"IF(D:D=\"Parcialmente Deferido\",\"Pontuação aproveitada (sem considerar regra de redimensionamento): \"&VLOOKUP(A:A,'Simulador de pontos para progr.'!A:H,6,0)&\" pontos. \"&IF(VLOOKUP(A:A,'Simulador de pontos para progr.'!A:K,11,0)=0,\"\",VLOOKUP(A:A,'Simulador de pontos para progr.'!A:K,11,0)),IF(VLOOKUP(A:A,'Simulador de pontos para progr.'!A:K,11,0)=0,\"\",VLOOKUP(A:A,'Simulador de pontos para progr.'!A:K,11,0)))","v":""},"Esconde"]
[{"$f":"'Simulador de pontos para progr.'!A133","v":"D5.1.5"},{"$f":"VLOOKUP(A:A,'Simulador de pontos para progr.'!A:B,2,0)","v":"Coordenação de curso pós-graduação lato sensu"},null,{"$f":"IF(VLOOKUP(A:A,'Simulador de pontos para progr.'!A:J,10,0)=0,\"\",VLOOKUP(A:A,'Simulador de pontos para progr.'!A:J,10,0))","v":""},{"$f":"IF(D:D=\"Parcialmente Deferido\",\"Pontuação aproveitada (sem considerar regra de redimensionamento): \"&VLOOKUP(A:A,'Simulador de pontos para progr.'!A:H,6,0)&\" pontos. \"&IF(VLOOKUP(A:A,'Simulador de pontos para progr.'!A:K,11,0)=0,\"\",VLOOKUP(A:A,'Simulador de pontos para progr.'!A:K,11,0)),IF(VLOOKUP(A:A,'Simulador de pontos para progr.'!A:K,11,0)=0,\"\",VLOOKUP(A:A,'Simulador de pontos para progr.'!A:K,11,0)))","v":""},"Esconde"]
[{"$f":"'Simulador de pontos para progr.'!A134","v":"D5.1.6"},{"$f":"VLOOKUP(A:A,'Simulador de pontos para progr.'!A:B,2,0)","v":"Coordenação de curso pós-graduação stricto sensu"},null,{"$f":"IF(VLOOKUP(A:A,'Simulador de pontos para progr.'!A:J,10,0)=0,\"\",VLOOKUP(A:A,'Simulador de pontos para progr.'!A:J,10,0))","v":""},{"$f":"IF(D:D=\"Parcialmente Deferido\",\"Pontuação aproveitada (sem considerar regra de redimensionamento): \"&VLOOKUP(A:A,'Simulador de pontos para progr.'!A:H,6,0)&\" pontos. \"&IF(VLOOKUP(A:A,'Simulador de pontos para progr.'!A:K,11,0)=0,\"\",VLOOKUP(A:A,'Simulador de pontos para progr.'!A:K,11,0)),IF(VLOOKUP(A:A,'Simulador de pontos para progr.'!A:K,11,0)=0,\"\",VLOOKUP(A:A,'Simulador de pontos para progr.'!A:K,11,0)))","v":""},"Esconde"]
[{"$f":"'Simulador de pontos para progr.'!A135","v":"D5.1.7"},{"$f":"VLOOKUP(A:A,'Simulador de pontos para progr.'!A:B,2,0)","v":"Coordenador de laboratório"},null,{"$f":"IF(VLOOKUP(A:A,'Simulador de pontos para progr.'!A:J,10,0)=0,\"\",VLOOKUP(A:A,'Simulador de pontos para progr.'!A:J,10,0))","v":""},{"$f":"IF(D:D=\"Parcialmente Deferido\",\"Pontuação aproveitada (sem considerar regra de redimensionamento): \"&VLOOKUP(A:A,'Simulador de pontos para progr.'!A:H,6,0)&\" pontos. \"&IF(VLOOKUP(A:A,'Simulador de pontos para progr.'!A:K,11,0)=0,\"\",VLOOKUP(A:A,'Simulador de pontos para progr.'!A:K,11,0)),IF(VLOOKUP(A:A,'Simulador de pontos para progr.'!A:K,11,0)=0,\"\",VLOOKUP(A:A,'Simulador de pontos para progr.'!A:K,11,0)))","v":""},"Esconde"]
[{"$f":"'Simulador de pontos para progr.'!A136","v":"D5.1.8"},{"$f":"VLOOKUP(A:A,'Simulador de pontos para progr.'!A:B,2,0)","v":"Coordenação ou supervisão de estágio"},null,{"$f":"IF(VLOOKUP(A:A,'Simulador de pontos para progr.'!A:J,10,0)=0,\"\",VLOOKUP(A:A,'Simulador de pontos para progr.'!A:J,10,0))","v":""},{"$f":"IF(D:D=\"Parcialmente Deferido\",\"Pontuação aproveitada (sem considerar regra de redimensionamento): \"&VLOOKUP(A:A,'Simulador de pontos para progr.'!A:H,6,0)&\" pontos. \"&IF(VLOOKUP(A:A,'Simulador de pontos para progr.'!A:K,11,0)=0,\"\",VLOOKUP(A:A,'Simulador de pontos para progr.'!A:K,11,0)),IF(VLOOKUP(A:A,'Simulador de pontos para progr.'!A:K,11,0)=0,\"\",VLOOKUP(A:A,'Simulador de pontos para progr.'!A:K,11,0)))","v":""},"Esconde"]
[{"$f":"'Simulador de pontos para progr.'!A137","v":"D5.1.9"},{"$f":"VLOOKUP(A:A,'Simulador de pontos para progr.'!A:B,2,0)","v":"Gerencia ou Coordenação administrativa"},null,{"$f":"IF(VLOOKUP(A:A,'Simulador de pontos para progr.'!A:J,10,0)=0,\"\",VLOOKUP(A:A,'Simulador de pontos para progr.'!A:J,10,0))","v":""},{"$f":"IF(D:D=\"Parcialmente Deferido\",\"Pontuação aproveitada (sem considerar regra de redimensionamento): \"&VLOOKUP(A:A,'Simulador de pontos para progr.'!A:H,6,0)&\" pontos. \"&IF(VLOOKUP(A:A,'Simulador de pontos para progr.'!A:K,11,0)=0,\"\",VLOOKUP(A:A,'Simulador de pontos para progr.'!A:K,11,0)),IF(VLOOKUP(A:A,'Simulador de pontos para progr.'!A:K,11,0)=0,\"\",VLOOKUP(A:A,'Simulador de pontos para progr.'!A:K,11,0)))","v":""},"Esconde"]
[{"$f":"'Simulador de pontos para progr.'!A138","v":"D5.1.10"},{"$f":"VLOOKUP(A:A,'Simulador de pontos para progr.'!A:B,2,0)","v":"Assessoria (Pró-reitorias)"},null,{"$f":"IF(VLOOKUP(A:A,'Simulador de pontos para progr.'!A:J,10,0)=0,\"\",VLOOKUP(A:A,'Simulador de pontos para progr.'!A:J,10,0))","v":""},{"$f":"IF(D:D=\"Parcialmente Deferido\",\"Pontuação aproveitada (sem considerar regra de redimensionamento): \"&VLOOKUP(A:A,'Simulador de pontos para progr.'!A:H,6,0)&\" pontos. \"&IF(VLOOKUP(A:A,'Simulador de pontos para progr.'!A:K,11,0)=0,\"\",VLOOKUP(A:A,'Simulador de pontos para progr.'!A:K,11,0)),IF(VLOOKUP(A:A,'Simulador de pontos para progr.'!A:K,11,0)=0,\"\",VLOOKUP(A:A,'Simulador de pontos para progr.'!A:K,11,0)))","v":""},"Esconde"]
[{"$f":"'Simulador de pontos para progr.'!A139","v":"D5.1.11"},{"$f":"VLOOKUP(A:A,'Simulador de pontos para progr.'!A:B,2,0)","v":"Liderança de grupos de pesquisa/Coordenação programa de Extensão/ensino."},null,{"$f":"IF(VLOOKUP(A:A,'Simulador de pontos para progr.'!A:J,10,0)=0,\"\",VLOOKUP(A:A,'Simulador de pontos para progr.'!A:J,10,0))","v":""},{"$f":"IF(D:D=\"Parcialmente Deferido\",\"Pontuação aproveitada (sem considerar regra de redimensionamento): \"&VLOOKUP(A:A,'Simulador de pontos para progr.'!A:H,6,0)&\" pontos. \"&IF(VLOOKUP(A:A,'Simulador de pontos para progr.'!A:K,11,0)=0,\"\",VLOOKUP(A:A,'Simulador de pontos para progr.'!A:K,11,0)),IF(VLOOKUP(A:A,'Simulador de pontos para progr.'!A:K,11,0)=0,\"\",VLOOKUP(A:A,'Simulador de pontos para progr.'!A:K,11,0)))","v":""},"Esconde"]
[{"$f":"'Simulador de pontos para progr.'!A140","v":"D5.1.12"},{"$f":"VLOOKUP(A:A,'Simulador de pontos para progr.'!A:B,2,0)","v":"Liderança de projetos de extensão, pesquisa ou ensino"},null,{"$f":"IF(VLOOKUP(A:A,'Simulador de pontos para progr.'!A:J,10,0)=0,\"\",VLOOKUP(A:A,'Simulador de pontos para progr.'!A:J,10,0))","v":""},{"$f":"IF(D:D=\"Parcialmente Deferido\",\"Pontuação aproveitada (sem considerar regra de redimensionamento): \"&VLOOKUP(A:A,'Simulador de pontos para progr.'!A:H,6,0)&\" pontos. \"&IF(VLOOKUP(A:A,'Simulador de pontos para progr.'!A:K,11,0)=0,\"\",VLOOKUP(A:A,'Simulador de pontos para progr.'!A:K,11,0)),IF(VLOOKUP(A:A,'Simulador de pontos para progr.'!A:K,11,0)=0,\"\",VLOOKUP(A:A,'Simulador de pontos para progr.'!A:K,11,0)))","v":""},"Esconde"]
[{"$f":"'Simulador de pontos para progr.'!A145","v":"D6.1.1"},{"$f":"VLOOKUP(A:A,'Simulador de pontos para progr.'!A:B,2,0)","v":"Conselhos/Comitês Municipais/Estaduais/Nacionais."},null,{"$f":"IF(VLOOKUP(A:A,'Simulador de pontos para progr.'!A:J,10,0)=0,\"\",VLOOKUP(A:A,'Simulador de pontos para progr.'!A:J,10,0))","v":""},{"$f":"IF(D:D=\"Parcialmente Deferido\",\"Pontuação aproveitada (sem considerar regra de redimensionamento): \"&VLOOKUP(A:A,'Simulador de pontos para progr.'!A:H,6,0)&\" pontos. \"&IF(VLOOKUP(A:A,'Simulador de pontos para progr.'!A:K,11,0)=0,\"\",VLOOKUP(A:A,'Simulador de pontos para progr.'!A:K,11,0)),IF(VLOOKUP(A:A,'Simulador de pontos para progr.'!A:K,11,0)=0,\"\",VLOOKUP(A:A,'Simulador de pontos para progr.'!A:K,11,0)))","v":""},"Esconde"]
[{"$f":"'Simulador de pontos para progr.'!A146","v":"D6.1.2"},{"$f":"VLOOKUP(A:A,'Simulador de pontos para progr.'!A:B,2,0)","v":"Comitês/Conselhos administrativos"},null,{"$f":"IF(VLOOKUP(A:A,'Simulador de pontos para progr.'!A:J,10,0)=0,\"\",VLOOKUP(A:A,'Simulador de pontos para progr.'!A:J,10,0))","v":""},{"$f":"IF(D:D=\"Parcialmente Deferido\",\"Pontuação aproveitada (sem considerar regra de redimensionamento): \"&VLOOKUP(A:A,'Simulador de pontos para progr.'!A:H,6,0)&\" pontos. \"&IF(VLOOKUP(A:A,'Simulador de pontos para progr.'!A:K,11,0)=0,\"\",VLOOKUP(A:A,'Simulador de pontos para progr.'!A:K,11,0)),IF(VLOOKUP(A:A,'Simulador de pontos para progr.'!A:K,11,0)=0,\"\",VLOOKUP(A:A,'Simulador de pontos para progr.'!A:K,11,0)))","v":""},"Esconde"]
[{"$f":"'Simulador de pontos para progr.'!A147","v":"D6.1.3"},{"$f":"VLOOKUP(A:A,'Simulador de pontos para progr.'!A:B,2,0)","v":"Comitês/Conselhos científicos/de ética"},null,{"$f":"IF(VLOOKUP(A:A,'Simulador de pontos para progr.'!A:J,10,0)=0,\"\",VLOOKUP(A:A,'Simulador de pontos para progr.'!A:J,10,0))","v":""},{"$f":"IF(D:D=\"Parcialmente Deferido\",\"Pontuação aproveitada (sem considerar regra de redimensionamento): \"&VLOOKUP(A:A,'Simulador de pontos para progr.'!A:H,6,0)&\" pontos. \"&IF(VLOOKUP(A:A,'Simulador de pontos para progr.'!A:K,11,0)=0,\"\",VLOOKUP(A:A,'Simulador de pontos para progr.'!A:K,11,0)),IF(VLOOKUP(A:A,'Simulador de pontos para progr.'!A:K,11,0)=0,\"\",VLOOKUP(A:A,'Simulador de pontos para progr.'!A:K,11,0)))","v":""},"Esconde"]
[{"$f":"'Simulador de pontos para progr.'!A148","v":"D6.1.4"},{"$f":"VLOOKUP(A:A,'Simulador de pontos para progr.'!A:B,2,0)","v":"Atuação como parecerista ad hoc ou avaliador de livros, artigos e resumos. "},null,{"$f":"IF(VLOOKUP(A:A,'Simulador de pontos para progr.'!A:J,10,0)=0,\"\",VLOOKUP(A:A,'Simulador de pontos para progr.'!A:J,10,0))","v":""},{"$f":"IF(D:D=\"Parcialmente Deferido\",\"Pontuação aproveitada (sem considerar regra de redimensionamento): \"&VLOOKUP(A:A,'Simulador de pontos para progr.'!A:H,6,0)&\" pontos. \"&IF(VLOOKUP(A:A,'Simulador de pontos para progr.'!A:K,11,0)=0,\"\",VLOOKUP(A:A,'Simulador de pontos para progr.'!A:K,11,0)),IF(VLOOKUP(A:A,'Simulador de pontos para progr.'!A:K,11,0)=0,\"\",VLOOKUP(A:A,'Simulador de pontos para progr.'!A:K,11,0)))","v":""},"Esconde"]
[{"$f":"'Simulador de pontos para progr.'!A149","v":"D6.1.5"},{"$f":"VLOOKUP(A:A,'Simulador de pontos para progr.'!A:B,2,0)","v":"Participação no Núcleo Docente Estruturante (NDE)"},null,{"$f":"IF(VLOOKUP(A:A,'Simulador de pontos para progr.'!A:J,10,0)=0,\"\",VLOOKUP(A:A,'Simulador de pontos para progr.'!A:J,10,0))","v":""},{"$f":"IF(D:D=\"Parcialmente Deferido\",\"Pontuação aproveitada (sem considerar regra de redimensionamento): \"&VLOOKUP(A:A,'Simulador de pontos para progr.'!A:H,6,0)&\" pontos. \"&IF(VLOOKUP(A:A,'Simulador de pontos para progr.'!A:K,11,0)=0,\"\",VLOOKUP(A:A,'Simulador de pontos para progr.'!A:K,11,0)),IF(VLOOKUP(A:A,'Simulador de pontos para progr.'!A:K,11,0)=0,\"\",VLOOKUP(A:A,'Simulador de pontos para progr.'!A:K,11,0)))","v":""},"Esconde"]
[{"$f":"IF(AND(COUNTIF('Simulador de pontos para progr.'!J:J,\"Indeferido\")=0,COUNTIF('Simulador de pontos para progr.'!J:J,\"Parcialmente Deferido\")=0),\"Não houve itens indeferidos ou parcialmente deferidos.\",\" \")","v":"Não houve itens indeferidos ou parcialmente deferidos."},null,null,null,null,{"$f":"IF(OR(D:D=\"Indeferido\",D:D=\"Parcialmente Deferido\",A:A=\"Não houve itens indeferidos ou parcialmente deferidos.\"),\"Mostra\",\"Esconde\")","v":"Mostra"}]
[{"$f":"\"Novo Hamburgo, \"&DAY(TODAY())&\" de \"&VLOOKUP(MONTH(TODAY()),'Regras de cálculo'!F:G,2,0)&\" de \"&YEAR(TODAY())&\".\"","v":"Novo Hamburgo, 31 de Outubro de 2018."},null,null,null,null,"Mostra"]
[null,null,null,null,null,"Mostra"]
["Daniele Hilgert Rafael",null,null,null,"Claudia Denicol Winter","Mostra"]
[null,null,null,null,null,"Mostra"]
["Josias Daniel Amaral Soares",null,null,null,"Marcelo Marques Soares","Mostra"]
[null,null,null,null,null,"Mostra"]
["Monique Ramires Machado Musskopf",null,null,null,"Rodrigo Perla Martins","Mostra"]
[null,null,null,null,null,"Mostra"]
["Rosemari Lorenz Martins",null,null,null,"Sandra Difini Kopzinski","Mostra"]

{"sheet":"Simulador de pontos para progr.","index":1,"n_rows":162,"n_cols":12,"rows_kept":162,"cut":false,"hidden":false,"merged":[[147,10,147,11],[148,10,148,11],[137,10,137,11],[138,10,138,11],[139,10,139,11],[144,10,144,11],[145,10,145,11],[132,10,132,11],[133,10,133,11],[134,10,134,11],[135,10,135,11],[136,10,136,11],[129,10,129,11],[130,10,130,11],[131,10,131,11],[113,10,113,11],[119,10,119,11],[120,10,120,11],[121,10,121,11],[122,10,122,11],[146,10,146,11],[111,10,111,11],[112,10,112,11],[101,10,101,11],[102,10,102,11],[103,10,103,11],[106,10,106,11],[107,10,107,11],[123,10,123,11],[128,10,128,11],[84,10,84,11],[73,10,73,11],[74,10,74,11],[75,10,75,11],[76,10,76,11],[77,10,77,11],[108,10,108,11],[109,10,109,11],[110,10,110,11],[72,10,72,11],[118,10,118,11],[127,10,127,11],[143,10,143,11],[41,10,41,11],[42,10,42,11],[43,10,43,11],[44,10,44,11],[45,10,45,11],[46,10,46,11],[47,10,47,11],[48,10,48,11],[49,10,49,11],[50,10,50,11],[51,10,51,11],[54,10,54,11],[57,10,57,11],[67,10,67,11],[83,10,83,11],[91,10,91,11],[78,10,78,11],[79,10,79,11],[80,10,80,11],[81,10,81,11],[118,0,118,8],[124,0,124,3],[127,0,127,8],[61,10,61,11],[62,10,62,11],[63,10,63,11],[64,10,64,11],[19,10,19,11],[24,10,24,11],[32,10,32,11],[40,10,40,11],[53,10,53,11],[28,10,28,11],[39,10,39,11],[52,10,52,11],[55,10,55,11],[33,10,33,11],[34,10,34,11],[35,10,35,11],[36,10,36,11],[37,10,37,11],[38,10,38,11],[58,10,58,11],[59,10,59,11],[82,0,82,3],[89,0,89,7],[32,0,32,8],[87,0,87,3],[97,0,97,3],[88,0,88,3],[104,0,104,3],[114,0,114,3],[98,0,98,8],[53,0,53,8],[161,1,161,3],[153,1,153,4],[141,0,141,7],[150,0,150,4],[116,0,116,7],[125,0,125,7],[143,0,143,8],[149,0,149,3],[1,0,1,8],[140,0,140,3],[115,0,115,3],[105,0,105,8],[83,0,83,8],[91,0,91,8],[29,0,29,3],[30,0,30,7],[4,0,4,8],[8,0,8,3],[9,0,9,8],[13,0,13,3],[14,0,14,8],[39,0,39,3],[52,0,52,3],[55,0,55,3],[0,0,0,8],[18,0,18,3],[56,0,56,8],[67,0,67,8],[2,0,2,7],[24,0,24,8],[23,0,23,3],[28,0,28,3],[19,0,19,8],[40,0,40,8],[66,0,66,3],[4,10,4,11],[5,10,5,11],[6,10,6,11],[7,10,7,11],[10,10,10,11],[9,10,9,11],[27,10,27,11],[8,10,8,11],[13,10,13,11],[18,10,18,11],[23,10,23,11],[20,10,20,11],[21,10,21,11],[22,10,22,11],[25,10,25,11],[26,10,26,11],[11,10,11,11],[12,10,12,11],[15,10,15,11],[16,10,16,11],[17,10,17,11],[14,10,14,11],[66,10,66,11],[56,10,56,11],[65,10,65,11],[82,10,82,11],[87,10,87,11],[97,10,97,11],[104,10,104,11],[114,10,114,11],[98,10,98,11],[105,10,105,11],[85,10,85,11],[86,10,86,11],[92,10,92,11],[93,10,93,11],[94,10,94,11],[95,10,95,11],[96,10,96,11],[99,10,99,11],[100,10,100,11],[60,10,60,11],[68,10,68,11],[69,10,69,11],[70,10,70,11],[71,10,71,11]]}
["Anexo 01 - Edital Interno de Progressão - Quadro de Carreira Docente do Ensino Superior"]
[]
["DIMENSÃO 1: Participação em cursos e eventos apresentando trabalhos, atuando como palestrante, mediador, organizador, coordenador e ouvinte.",null,null,null,null,null,null,null,null,"MATRÍCULA","NOME DO CANDIDATO","CARGO PRETENDIDO"]
["Legenda","Critério de Avaliação","Fornecimento quando evento da Feevale","Pontos","Quantidade preenchida pelo docente","Total de Pontos","Quantidade de documentos entregues","%","Setor para solicitar 2ª via Prazo: 10 dias úteis"]
["1.1 Participação como ouvinte em cursos ou eventos acadêmicos e científicos",null,null,null,null,null,null,null,null,"Deferido?","Justificativa da ata"]
["D1.1.1","Para 40h de participação como ouvinte em cursos ou eventos academicos e cientificos(regional)","Núcleo de Cursos e Eventos de Extensão",1,null,{"$f":"D6*E6","v":0},null,null,"Atendimento Feevale  "]
["D1.1.2","Para 40h de participação como ouvinte em cursos ou eventos academicos e cientificos(nacional)","Núcleo de Cursos e Eventos de Extensão",2,null,{"$f":"D7*E7","v":0},null,null,"Atendimento Feevale  "]
["D1.1.3","Para 40h de participação como ouvinte em cursos ou eventos academicos ecientificos(internacional)","Núcleo de Cursos e Eventos de Extensão",3,null,{"$f":"D8*E8","v":0},null,null,"Atendimento Feevale  "]
["Total ",null,null,null,null,{"$f":"SUM(F6:F8)","v":0},{"$f":"SUM(G6:G8)","v":0}]
["1.2 Apresentação de trabalhos sem publicação",null,null,null,null,null,null,null,null,"Deferido?","Justificativa da ata"]
["D1.2.1","Apresentação de trabalhos sem publicação (regional)","Núcleo de Cursos e Eventos de Extensão",2.67,null,{"$f":"D11*E11","v":0},null,null,"Atendimento Feevale  "]
["D1.2.2","Apresentação de trabalhos sem publicação (nacional)","Núcleo de Cursos e Eventos de Extensão",5,null,{"$f":"D12*E12","v":0},null,null,"Atendimento Feevale  "]
["D1.2.3","Apresentação de trabalhos sem publicação (internacional)","Núcleo de Cursos e Eventos de Extensão",9.33,null,{"$f":"D13*E13","v":0},null,null,"Atendimento Feevale  "]
["Total",null,null,null,null,{"$f":"SUM(F11:F13)","v":0},{"$f":"SUM(G11:G13)","v":0}]
["1.3 Organização e coordenação de eventos",null,null,null,null,null,null,null,null,"Deferido?","Justificativa da ata"]
["D1.3.1","Organização e coordenação de eventos (regional)","Núcleo de Cursos e Eventos de Extensão",3.33,null,{"$f":"D16*E16","v":0},null,null,"Atendimento Feevale  "]
["D1.3.2","Organização e coordenação de eventos (nacional)","Núcleo de Cursos e Eventos de Extensão",6,null,{"$f":"D17*E17","v":0},null,null,"Atendimento Feevale  "]
["D1.3.3","Organização e coordenação de eventos (internacional)","Núcleo de Cursos e Eventos de Extensão",9.33,null,{"$f":"D18*E18","v":0},null,null,"Atendimento Feevale  "]
["Total",null,null,null,null,{"$f":"SUM(F16:F18)","v":0},{"$f":"SUM(G16:G18)","v":0}]
["1.4 Participação como palestrante em eventos ou ministrante de curso",null,null,null,null,null,null,null,null,"Deferido?","Justificativa da ata"]
["D1.4.1","Participação como palestrante em eventos ou ministrante de curso (regional)","Núcleo de Cursos e Eventos de Extensão",2.67,null,{"$f":"D21*E21","v":0},null,null,"Atendimento Feevale  "]
["D1.4.2","Participação como palestrante em eventos ou ministrante de curso (nacional)","Núcleo de Cursos e Eventos de Extensão",5,null,{"$f":"D22*E22","v":0},null,null,"Atendimento Feevale  "]
["D1.4.3","Participação como palestrante em eventos ou ministrante de curso (internacional)","Núcleo de Cursos e Eventos de Extensão",9.33,null,{"$f":"D23*E23","v":0},null,null,"Atendimento Feevale  "]
["Total",null,null,null,null,{"$f":"SUM(F21:F23)","v":0},{"$f":"SUM(G21:G23)","v":0}]
["1.5 Mediação em mesas de eventos",null,null,null,null,null,null,null,null,"Deferido?","Justificativa da ata"]
["D1.5.1","Mediação em mesas de eventos (regional)","Núcleo de Cursos e Eventos de Extensão",1,null,{"$f":"D26*E26","v":0},null,null,"Atendimento Feevale  "]
["D1.5.2","Mediação em mesas de eventos (nacional)","Núcleo de Cursos e Eventos de Extensão",2.67,null,{"$f":"D27*E27","v":0},null,null,"Atendimento Feevale  "]
["D1.5.3","Mediação em mesas de eventos (internacional)","Núcleo de Cursos e Eventos de Extensão",5,null,{"$f":"D28*E28","v":0},null,null,"Atendimento Feevale  "]
["Total",null,null,null,null,{"$f":"SUM(F26:F28)","v":0},{"$f":"SUM(G26:G28)","v":0}]
["TOTAL DE PONTOS DA DIMENSÃO 1",null,null,null,null,{"$f":"F29+F24+F19+F14+F9","v":0},{"$f":"G9+G14+G19+G24+G29","v":0},{"$f":"F30/F151","v":{"$error":"#DIV/0!"}}]
["DIMENSÃO 2: Articulações da prática docente e investigativa à intervenção social e espírito investigativo."]
["Legenda","Critério de Avaliação","Fornecimento quando evento da Feevale","Pontos","Quantidade preenchida pelo docente","Total de Pontos","Quantidade de documentos entregues","%","Setor para solicitar 2ª via Prazo: 10 dias úteis"]
["2.1 Propriedade Intelectual",null,null,null,null,null,null,null,null,"Deferido?","Justificativa da ata"]
["D2.1.1","Marca (logomarca) registrada","PROPP (CPPI)",1.33,null,{"$f":"D34*E34","v":0},null,null,"PROPPEX (CPPI)"]
["D2.1.2","Software criado, desenvolvido e registrado","PROPP (CPPI)",7,null,0,null,null,"PROPPEX (CPPI)"]
["D2.1.3","Identificações geográficas registradas","PROPP (CPPI)",5.33,null,0,null,null,"PROPPEX (CPPI)"]
["D2.1.4","Desenhos industriais registrados","PROPP (CPPI)",5,null,0,null,null,"PROPPEX (CPPI)"]
["D2.1.5","Produto criado, desenvolvido, registrado e patenteado/modelo de utilidade","PROPP (CPPI)",13.33,null,0,null,null,"PROPPEX (CPPI)"]
["D2.1.6","Cultivares","PROPP (CPPI)",13.33,null,0,null,null,"PROPPEX (CPPI)"]
["Total",null,null,null,null,{"$f":"SUM(F34:F39)","v":0},{"$f":"SUM(G34:G39)","v":0}]
["2.2 Produção Bibliográfica",null,null,null,null,null,null,null,null,"Deferido?","Justificativa da ata"]
["D2.2.1","Textos em jornal e/ou revista","Biblioteca",1,null,{"$f":"D42*E42","v":0},null,null,"Biblioteca"]
["D2.2.2","Artigos completos publicados em periódicos técnicos cientificos","Biblioteca",2.67,null,0,null,null,"Biblioteca"]
["D2.2.3","Capítulos de livros","Biblioteca",5,null,0,null,null,"Biblioteca"]
["D2.2.4","Tradução de livro","Biblioteca",3.33,null,0,null,null,"Biblioteca"]
["D2.2.5","Tradução de artigo científico","Biblioteca",1,null,0,null,null,"Biblioteca"]
["D2.2.6","Organização de obra","Biblioteca",7,null,0,null,null,"Biblioteca"]
["D2.2.7","Artigos Publicados em periódicos do Extrato 1(A1,A2,B1,B2)  da CAPES.","Biblioteca",13.33,null,0,null,null,"Biblioteca"]
["D2.2.8","Artigos publicados em periodicos do Extrato 2(B3,B4 E B5) da CAPES;","Biblioteca",6,null,0,null,null,"Biblioteca"]
["D2.2.9","Livro publicado","Biblioteca",9.33,null,0,null,null,"Biblioteca"]
["D2.2.10","Resumo de artigos publicados em Anais","Biblioteca",1,null,0,null,null,"Biblioteca"]
["D2.2.11","Artigos publicados em Anais","Biblioteca",2.67,null,0,null,null,"Biblioteca"]
["Total",null,null,null,null,{"$f":"SUM(F42:F52)","v":0},{"$f":"SUM(G42:G52)","v":0}]
["2.3 Trabalhos de Aula Desenvolvidos com a Comunidade",null,null,null,null,null,null,null,null,"Deferido?","Justificativa da ata"]
["D2.3.1","Atividades desenvolvidas por disciplina e turma de alunos da Feevale com a comunidade.","IAS e PROPP",6,null,{"$f":"D55*E55","v":0},null,null,"Secretaria de PPGSS"]
["Total",null,null,null,null,{"$f":"SUM(F55)","v":0},{"$f":"SUM(G55)","v":0}]
["2.4 Parcerias para a Auto-Sustentabilidade - (atividades desenvolvidas na Feevale)",null,null,null,null,null,null,null,null,"Deferido?","Justificativa da ata"]
["D2.4.1","Bolsas CNPQ produtividade","PROPP (CPPI)",9.33,null,{"$f":"D58*E58","v":0},null,null,"Termo CNPQ"]
["D2.4.2","Bolsas para alunos fomento externo","PROPP/ PROACOM/ IAS",7,null,0,null,null,"PROPPEX (IC e Secretaria de PPGSS) / IAS"]
["D2.4.3","Apoio financeiro para projetos com envolvimento de entidades","PROPP/ PROACOM/ PROGRAD",8,null,0,null,null,"PROPPEX (NITT)/ PROEN"]
["D2.4.4","Recursos para organização de eventos - Regional","Núcleo de Cursos e Eventos de Extensão",9.33,null,0,null,null,"Marketing - Núcleo de Eventos e cursos"]
["D2.4.5","Recursos para organização de eventos - Nacional","Núcleo de Cursos e Eventos de Extensão",10.67,null,0,null,null,"Marketing - Núcleo de Eventos e cursos"]
["D2.4.6","Recursos para organização de eventos - Internacional","Núcleo de Cursos e Eventos de Extensão",12,null,0,null,null,"Marketing - Núcleo de Eventos e cursos"]
["D2.4.7","Geração de Superavit a partir da realização de eventos","Núcleo de Cursos e Eventos de Extensão",8,null,0,null,null,"Marketing - Núcleo de Eventos e cursos"]
["D2.4.8","Custeio de projetos com agencias de fomento","PROPP/ PROACOM/ PROGRAD",12,null,0,null,null,"PROPPEX (NITT)/ PROEN"]
["D2.4.9","Serviços com Superavit","Relacionamento Corporativo",1,null,0,null,null,"PROPPEX"]
["Total",null,null,null,null,{"$f":"SUM(F58:F66)","v":0},{"$f":"SUM(G58:G66)","v":0}]
["2.5 Produções Artístico-Culturais",null,null,null,null,null,null,null,null,"Deferido?","Justificativa da ata"]
["D2.5.1","Produção artística","IAS",2.67,null,{"$f":"D69*E69","v":0},null,null,"IAS"]
["D2.5.2","Obra artística","IAS",4,null,0,null,null,"IAS"]
["D2.5.3","Apresentação de rádio ou TV","Núcleo de Mídias",2,null,0,null,null,"Núcleo de Mídias"]
["D2.5.4","Criação e execução de programa de rádio ou TV","Núcleo de Mídias",3.33,null,0,null,null,"Núcleo de Mídias"]
["D2.5.5","Sonoplastia(cinema,musica,teatro,rádio,televisão)","Núcleo de Mídias",2.67,null,0,null,null,"Núcleo de Mídias"]
["D2.5.6","Crítica artística ou cultural publicada","IAS",2.67,null,0,null,null,"IAS"]
["D2.5.7","Roteiro ou adaptação ou versão de obra de ficção","IAS",2.67,null,0,null,null,"IAS"]
["D2.5.8","Direção de espetáculo cênico ou musical","IAS",4,null,0,null,null,"IAS"]
["D2.5.9","Mostra individual de obra fotográfica ou de artes Visuais","IAS",3.33,null,0,null,null,"IAS"]
["D2.5.10","Mostra coletiva de obra fotográfica ou de artes visuais;","IAS",2.67,null,0,null,null,"IAS"]
["D2.5.11","Manutenção de obra artística/cultural","IAS",2.67,null,0,null,null,"IAS"]
["D2.5.12","Arranjo musical (canto, coral, orquestral)","IAS",3.33,null,0,null,null,"IAS"]
["D2.5.13","Composição musical (canto, coral, orquestral)","IAS",4,null,0,null,null,"IAS"]
["D2.5.14","Criação de material educativo vinculado as artes","IAS",4,null,0,null,null,"IAS"]
["Total",null,null,null,null,{"$f":"SUM(F69:F82)","v":0},{"$f":"SUM(G69:G82)","v":0}]
["2.6 Premiações e Títulos Honoríficos Recebidos",null,null,null,null,null,null,null,null,"Deferido?","Justificativa da ata"]
["D2.6.1","Premiações-(Destaques) Regional",null,2,null,{"$f":"D85*E85","v":0}]
["D2.6.2","Premiações-(Destaques) Nacional",null,4,null,{"$f":"D86*E86","v":0}]
["D2.6.3","Premiações-(Destaques) Internacional",null,7,null,{"$f":"D87*E87","v":0}]
["Total",null,null,null,null,{"$f":"SUM(F85:F87)","v":0},{"$f":"SUM(G85:G87)","v":0}]
["TOTAL DE PONTOS DA DIMENSÃO 2:",null,null,null,null,{"$f":"F88+F83+F67+F56+F53+F40","v":0},{"$f":"G40+G53+G56+G67+G83+G88","v":0},{"$f":"F89/F151","v":{"$error":"#DIV/0!"}}]
["DIMENSÃO 3: Práticas da Construção do Conhecimento, Visão Interdisciplinar."]
["Legenda","Critério de Avaliação","Fornecimento quando evento da Feevale","Pontos","Quantidade preenchida pelo docente","Total de Pontos","Quantidade de documentos entregues","%","Setor para solicitar 2ª via Prazo: 10 dias úteis"]
["3.1 Orientações - (orientação concluída do trabalho)",null,null,null,null,null,null,null,null,"Deferido?","Justificativa da ata"]
["D3.1.1","Orientação de trabalho de conclusão de curso de graduação","IAS",1.67,null,{"$f":"D93*E93","v":0},null,null,"IAS"]
["D3.1.2","Orientação de trabalho de conclusão de curso de especialização ou MBA.","Núcleo de Pós-Graduação",1,null,{"$f":"D94*E94","v":0},null,null,"Núcleo de Pós-Graduação (PROPPEX)"]
["D3.1.3","Orientação de acadêmicos de Iniciação Científica e Extensão","PROPP / PROACOM",1,null,{"$f":"D95*E95","v":0},null,null,"PROPPEX (IC)"]
["D3.1.4","Orientação de Dissertação de Mestrado","PROPP",4.67,null,{"$f":"D96*E96","v":0},null,null,"PROPPEX (Secretaria PPGSS)"]
["D3.1.5","Orientação de Tese de Doutorado","PROPP",7,null,{"$f":"D97*E97","v":0},null,null,"PROPPEX (Secretaria PPGSS)"]
["Total",null,null,null,null,{"$f":"SUM(F93:F97)","v":0},{"$f":"SUM(G93:G97)","v":0}]
["3.2 Participação em bancas",null,null,null,null,null,null,null,null,"Deferido?","Justificativa da ata"]
["D3.2.1","Bancas da graduação","IAS",0.27,null,{"$f":"D100*E100","v":0},null,null,"IAS"]
["D3.2.2","Bancas de especialização ou de MBA","Assessoria de Pós-Graduação",0.2,null,{"$f":"D101*E101","v":0},null,null,"Núcleo de Pós-Graduação (PROPPEX)"]
["D3.2.3","Bancas de mestrado ou de doutorado","PROPP",1,null,{"$f":"D102*E102","v":0},null,null,"PROPEX (Secretaria PPGSS)"]
["D3.2.4","Bancas de iniciação cientifica ou trabalhos de extensão.","Núcleo de Cursos e Eventos de Extensão",0.2,null,{"$f":"D103*E103","v":0},null,null,"Atendimento Feevale  "]
["D3.2.5","Comissão de avaliação de salão de extensão/feira de iniciação cientifica/comissão avaliadora de prêmio","Núcleo de Cursos e Eventos de Extensão",0.2,null,{"$f":"D104*E104","v":0},null,null,"Atendimento Feevale  "]
["Total",null,null,null,null,{"$f":"SUM(F100:F104)","v":0},{"$f":"SUM(G100:G104)","v":0}]
["3.3 Intercâmbios - (atividades realizadas na Feevale)",null,null,null,null,null,null,null,null,"Deferido?","Justificativa da ata"]
["D3.3.1","Organização de viagem de intercâmbio:Estudos, Tecnicas e Culturais.","DRI / Núcleo de Cursos e Eventos de Extensão",3.33,null,{"$f":"D107*E107","v":0},null,null,"DRI"]
["D3.3.2","Execução de projetos de pesquisa/Extensão/Ensino realizados com IES parceiras.","PROPP/PROACOM/DRI/PROGRAD",9.33,null,0,null,null,"PROPPEX/ DRI/ PROEN"]
["D3.3.3","Participação em intercambio docente nos cursos de graduação","DRI  ",6,null,0,null,null,"DRI"]
["D3.3.4","Participação em intercambio docente nos cursos de Pós graduação","DRI / PROPP",6,null,0,null,null,"DRI / PROPPEX (Secretaria de PPGSS)"]
["D3.3.5","Intercambio de discentes (orientandos)nos cursos de Pós graduação","DRI / PROPP",6.67,null,0,null,null,"DRI / PROPPEX (Secretaria de PPGSS)"]
["D3.3.6","Orientação de alunos estrangeiros (Pós graduação)","Asses. de Pós-Graduação / DRI",6.67,null,0,null,null,"Núcleo de Pós-Graduação (PROPPEX) / DRI"]
["D3.3.7","Ensino de discipinas em lingua estrangeira ","IAS / PROPP",3.33,null,0,null,null,"IAS / PROPPEX (Secretaria de PPGSS)"]
["D3.3.8","Tutoria de alunos estrangeiros","IAS /    PROPP /  PROACOM",4,null,0,null,null,"IAS / PROPPEX (Secretaria de PPG SS)"]
["Total",null,null,null,null,{"$f":"SUM(F107:F114)","v":0},{"$f":"SUM(G107:G114)","v":0}]
["TOTAL DE PONTOS DA DIMENSÃO 3:",null,null,null,null,{"$f":"F115+F105+F98","v":0},{"$f":"G98+G105+G115","v":0},{"$f":"F116/F151","v":{"$error":"#DIV/0!"}}]
["DIMENSÃO 4: Visão de Mercado, Tendências e Oportunidades"]
["Legenda","Critério de Avaliação","Fornecimento quando evento da Feevale","Pontos","Quantidade preenchida pelo docente","Total de Pontos","Quantidade de documentos entregues","%","Setor para solicitar 2ª via Prazo: 10 dias úteis"]
["4.1 Visão de Mercado, Tendências e Oportunidades",null,null,null,null,null,null,null,null,"Deferido?","Justificativa da ata"]
["D4.1.1","Organização de curso de extensão","Núcleo de Cursos e Eventos de Extensão",2,null,{"$f":"D120*E120","v":0},null,null,"Atendimento Feevale"]
["D4.1.2","Comissão/grupo para novo curso de graduação","IAS",9.33,null,{"$f":"D121*E121","v":0},null,null,"IAS"]
["D4.1.3","Comissão/grupo para novo curso de pós-graduação lato sensu","IAS",4,null,{"$f":"D122*E122","v":0},null,null,"IAS"]
["D4.1.4","Comissão/grupo para novo curso de pós-graduação stricto sensu","PROPP",12,null,{"$f":"D123*E123","v":0},null,null,"PROPPEX (Secretaria PPGSS)"]
["D4.1.5","Novos serviços","PROACOM",2.33,null,{"$f":"D124*E124","v":0},null,null,"PROPPEX / PROEN"]
["TOTAL DE PONTOS DA DIMENSÃO 4:",null,null,null,null,{"$f":"SUM(F120:F124)","v":0},{"$f":"SUM(G120:G124)","v":0},{"$f":"F125/F151","v":{"$error":"#DIV/0!"}}]
["DIMENSÃO 5: Visão estratégica e sistêmica, Aprimoramento contínuo dos projetos/programas/processos sob sua responsabilidade, foco em resultados "]
["Legenda","Critério de Avaliação","Fornecimento quando evento da Feevale","Pontos (para cada 6 meses)","Quantidade preenchida pelo docente (cada 6 meses)","Total de Pontos","Quantidade de documentos entregues","%","Setor para solicitar 2ª via Prazo: 10 dias úteis"]
["5.1 Gestão na Instituição",null,null,null,null,null,null,null,null,"Deferido?","Justificativa da ata"]
["D5.1.1","Reitor","Portaria - Reitoria",15,null,{"$f":"D129*E129","v":0},null,null,"Reitoria"]
["D5.1.2","Pró-Reitor","Portaria - Reitoria",15,null,0,null,null,"Reitoria"]
["D5.1.3","Diretor de Instituto Acadêmico","Portaria - Reitoria",12,null,0,null,null,"Reitoria"]
["D5.1.4","Coordenação de curso de graduação","Portaria - Reitoria",12,null,0,null,null,"Reitoria"]
["D5.1.5","Coordenação de curso pós-graduação lato sensu","Portaria - Reitoria",3.33,null,0,null,null,"Reitoria"]
["D5.1.6","Coordenação de curso pós-graduação stricto sensu","Portaria - Reitoria",10.67,null,0,null,null,"Reitoria"]
["D5.1.7","Coordenador de laboratório","IAS",1,null,0,null,null,"IAS"]
["D5.1.8","Coordenação ou supervisão de estágio","IAS",1,null,0,null,null,"IAS"]
["D5.1.9","Gerencia ou Coordenação administrativa","Portaria - Reitoria",9,null,0,null,null,"Reitoria"]
["D5.1.10","Assessoria (Pró-reitorias)","Portaria - Reitoria",9,null,0,null,null,"Reitoria"]
["D5.1.11","Liderança de grupos de pesquisa/Coordenação programa de Extensão/ensino.","PROPP e PROACOM",2,null,0,null,null,"PROPPEX (Pesquisa) e PROEN"]
["D5.1.12","Liderança de projetos de extensão, pesquisa ou ensino","PROPP e PROACOM",6,null,0,null,null,"PROPPEX (Pesquisa) e PROEN"]
["TOTAL DE PONTOS DA DIMENSÃO 5:",null,null,null,null,{"$f":"SUM(F129:F140)","v":0},{"$f":"SUM(G129:G140)","v":0},{"$f":"F141/F151","v":{"$error":"#DIV/0!"}}]
["DIMENSÃO 6: Espírito empreendedor, articulação e negociação, trabalho em equipe, relacionamento interpessoal"]
["Legenda","Critério de Avaliação","Fornecimento quando evento da Feevale","Pontos","Quantidade preenchida pelo docente ","Total de Pontos","Quantidade de documentos entregues","%","Setor para solicitar 2ª via Prazo: 10 dias úteis"]
["6.1 Conselhos / Comissões",null,null,null,null,null,null,null,null,"Deferido?","Justificativa da ata"]
["D6.1.1","Conselhos/Comitês Municipais/Estaduais/Nacionais.",null,4,null,{"$f":"D145*E145","v":0}]
["D6.1.2","Comitês/Conselhos administrativos","Reitoria/Pro-reitoria",1,null,{"$f":"D146*E146","v":0},null,null,"Reitoria/Pro-reitoria (PROPPEX - CONPPG - CPPI - Comissão PPGSS)"]
["D6.1.3","Comitês/Conselhos científicos/de ética","Reitoria/Pro-reitoria",2.67,null,{"$f":"D147*E147","v":0},null,null,"Reitoria/Pro-reitoria (PROPPEX - CEP - CEUA)"]
["D6.1.4","Atuação como parecerista ad hoc ou avaliador de livros, artigos e resumos. ",null,1,null,{"$f":"D148*E148","v":0}]
["D6.1.5","Participação no Núcleo Docente Estruturante (NDE)","PROEN",1,null,{"$f":"D149*E149","v":0},null,null,"PROEN"]
["TOTAL DE PONTOS DA DIMENSÃO 6:",null,null,null,null,{"$f":"SUM(F145:F149)","v":0},{"$f":"SUM(G145:G148)","v":0},{"$f":"F150/F151","v":{"$error":"#DIV/0!"}}]
["TOTAL DE PONTUAÇÃO DAS DIMENSÕES",null,null,null,null,{"$f":"F150+F141+F125+F116+F89+F30","v":0},null,{"$f":"H30+H89+H116+H125+H141+H150","v":{"$error":"#DIV/0!"}}]
[null,null,null,null,"40%=",{"$f":"F151*0.4","v":0}]
[]
[null,"%-REDIMENSIONADO"]
[null,"DIMENSÃO","PONTUAÇÃO TOTAL","PERCENTUAL","PONTOS VÁLIDOS"]
[null,1,{"$f":"F30","v":0},{"$f":"C156/F151","v":{"$error":"#DIV/0!"}},{"$f":"IF(C156>=$F$152,($F$152),IF(C156<=$F$152,C156))","v":0}]
[null,2,{"$f":"F89","v":0},{"$f":"C157/F151","v":{"$error":"#DIV/0!"}},0]
[null,3,{"$f":"F116","v":0},{"$f":"C158/F151","v":{"$error":"#DIV/0!"}},0]
[null,4,{"$f":"F125","v":0},{"$f":"C159/F151","v":{"$error":"#DIV/0!"}},0]
[null,5,{"$f":"F141","v":0},{"$f":"C160/F151","v":{"$error":"#DIV/0!"}},0]
[null,6,{"$f":"F150","v":0},{"$f":"C161/F151","v":{"$error":"#DIV/0!"}},0]
[null,"TOTAL",null,null,{"$f":"SUM(E156:E161)","v":0}]

{"sheet":"Regras de cálculo","index":2,"n_rows":12,"n_cols":7,"rows_kept":12,"cut":false,"hidden":false,"merged":[]}
["Deferido?",null,"Cargo","Pontuação",null,1,"Janeiro"]
["Deferido",null,"Assistente 1A",200,null,2,"Fevereiro"]
["Parcialmente Deferido",null,"Assistente 2A",250,null,3,"Março"]
["Indeferido",null,"Adjunto 1A",350,null,4,"Abril"]
[null,null,"Adjunto 2A",400,null,5,"Maio"]
[null,null,"Titular 1A",500,null,6,"Junho"]
[null,null,"Titular 2A",600,null,7,"Julho"]
[null,null,null,null,null,8,"Agosto"]
[null,null,null,null,null,9,"Setembro"]
[null,null,null,null,null,10,"Outubro"]
[null,null,null,null,null,11,"Novembro"]
[null,null,null,null,null,12,"Dezembro"]